{"text_format":"1","workbook":"xlsx","n_sheets":2,"sheets":["Građevinsko-obrtn. radovi","Opći uvjeti"],"not_rendered":{"charts":0,"images":3,"macros":1,"external_links":0,"defined_names":2,"comments":0,"pivot_tables":0},"unopened":[],"bounds":{"document_bytes":16777216,"sheet_cells":100000,"rows_first":2000,"rows_last":500,"rows_between":2000,"halvings":0,"cell_chars":16384,"cell_head_chars":4096},"cells_cut":0,"cells_raw":0,"read":"whole","date_system":"1900"}

{"sheet":"Građevinsko-obrtn. radovi","index":0,"n_rows":1805,"n_cols":15,"rows_kept":1805,"cut":false,"hidden":false,"merged":[[65,2,65,5],[67,0,67,2],[70,0,70,1],[71,0,71,1],[1,0,1,1],[8,0,9,0],[8,1,9,1],[8,2,9,2],[8,3,9,3],[64,2,64,5],[8,5,9,5],[3,0,3,1],[4,0,4,1],[5,0,5,1],[6,0,6,1],[7,0,7,1],[57,1,57,4],[59,1,59,4],[53,1,53,3],[8,4,9,4]]}
[]
[]
[null,null,null,null,null,null,null,null,"Crtl+Q","m1"]
[null,null,null,null,null,null,null,null,"Crtl+W","m2"]
[null,null,null,null,null,null,null,null,"Crtl+Shift+S",null,"SVEUKUPNO:",null,null,null,{"$f":"#REF!+#REF!","v":{"$error":"#REF!"}}]
[null,null,null,null,null,null,null,null,"Crtl+Shift+P",null,"PDV 23%:",null,null,null,{"$f":"(O5*23)/100","v":{"$error":"#REF!"}}]
[null,null,null,null,null,null,null,null,"Crtl+Shift+U",null,"UKUPNO:"]
[]
["Red.br.","V R S T A   R A D O V A","Jedinica mjere","Količina","Jedinična cijena","Iznos"]
[]
[null,null,null,null,null,{"$f":"D11*E11","v":0}]
[]
[]
["I","PRIPREMNI RADOVI "]
[]
["1.1.","Skidanje postojećih slojeva ravnog krova koji uključuju nasip šljunka, izolacije i beton za pad, sa žlijebom i rubnim opšavima. Uključivo utovar otpadnog materijala u kamion i odvoz na deponiju udaljenu do 5 km. ","m2",37.08,null,{"$f":"D16*E16","v":0}]
[]
["1.2.","Betoniranje nadozida zidova atike debljine 20 cm (konstrukcija srednjeg presjeka), armiranim betonom klase C 25/30 razred izloženosti XC1, granulacije 0-31 mm, plastične konzistencije, sa zaštitnim slojem 3 cm što odgovara HRN EN 1992-1-1, u potrebnoj drvenoj trostranoj oplati uz podupiranje i sa potrebnom armaturom."]
[null,"a) beton","m3",{"$f":"0.75*0.2*6.6+0.75*0.5*0.12*4","v":1.1700000000000002},null,{"$f":"D19*E19","v":0}]
[null,"b) oplata","m2",{"$f":"0.75*6.6*2+0.75*0.5*4*2","v":12.899999999999999},null,{"$f":"D20*E20","v":0}]
[null,"c) armatura","kg",{"$f":"150*D19","v":175.50000000000003},null,{"$f":"D21*E21","v":0}]
[]
["1.3.","Izrada, dobava i montaža dvostrešnog drvenog krovišta od jelove građe suhe grede klase C 24, vlage do 15%. Sve dimenzije građe date su u statičkom proračunu. Sve vidljive dijelove je potrebno blanjati. U cijenu uključen fugicidni premaz, kao i bojenje lazurnom i lak bojom vidljivih dijelova. Obračun po m2 hoiz. projekcije krova. ","m2",37.08,null,{"$f":"D23*E23","v":0}]
[]
["1.4.","Dobava i montaža trapeznog krovnog izolacijskog panela tip Kingspan KS1000RW isophenic ili jednakovrijedan proizvod sastavljen od vanjskog lima debljine 0,5 mm, poliesterska boja debljine 25 my, lim kvalitete S280 GD, po normi EN1042 i EN 10147-2000.\nŠirina panela 1000 mm. \nKoeficijent prolaska topline max U = 0,30 W/m2K.\nIzolacijska jezgra negoriva debljine 60 mm. Toplinska provodljivost izolacijske jezgre λ = 0,022 W/mK prema EN 13165 koja uključuje faktor starenja materijala.\nNa bočnom spoju panel-panel termička brtva, te u spojnom valu panela antikondenzacijska brtva.\nRal boja lima panela po izboru projektanta.\nVatrootpornost panela: R30/RE30/REI 30/ REW20 prema EN 13501-2\nReakcija na požar: B s1 d0\n- razred reakcije na požar Euroklasa B prema normi EN 13501\n- najviša, s1 klasa obzirom na razvoj dima \n- najviša, d0 klasa obzirom na goruće kapljice/otpale dijelove.  Tehničke karakteristike panela dokazati ovjerenom tvorničkom izjavom o svojstvima (DOP) te certifikatom o stalnosti svojstava izdanom od akreditirane EU certifikacijske kuće.Priložiti izjavu o svojstvima sa svim tehničkim karakteristikama panela.\nPriložiti garanciju na vatrootpornost, statiku i termičku izolaciju u trajanju od 25 godina.\nObavezna primjena svih propisanih uputa za montažu od strane proizvođača. \nPanel je s obje strane zaštićen sa PVC folijom, koja se u montaži odstranjuje.  Obračun po m2 ugrađenih panela. \nU stavku uključen sav originalni spojni i pričvrsni materijal, EPDM brtve, kalote i podlošci.\n  ","m2",{"$f":"7.3*3.35+6.24*3.52","v":46.419799999999995},null,{"$f":"D25*E25","v":0}]
[]
["1.5.","Dobava i izvedba standardnog detalja spoja kosine krova sa zidom od armiranog betona koji se sastoji iz opšava kao Kingspan K131 i K132 ili neki drugi jednako vrijedan proizvod koji se izvode iz čeličnog plastificiranog lima debljine 0.60 mm u boji po RAL-u krovnih panela, te svim potrebnim brtvenim i spojnim materijalom. Sve izvesti prema uputstvima i detaljima proizvođača Kingspan. Obračun prema stvarno izvedenim količinama. Razvijena širina opšava 80 cm.","m2",{"$f":"0.8*(4.8+8.1+4+3.3+7.2+3.62)","v":24.816000000000003},null,{"$f":"D27*E27","v":0}]
[]
["1.6.","Dobava i izvedba standardnog detalja spoja kosih krovova uvale prema detalju iz projektne dokumentacije. U cijenu uključena dobava i ugradnja savog potrebnog materijal. Boju odabrati prema dogovoru sa investitorom i projektantom.","m1",4.5999999999999996,null,{"$f":"D29*E29","v":0}]
[]
["1.7.","Izrada, dobava i montaža horizontalnih oluka od bojenog pocinčanog lima debljine 0,50 mm, razvijene širine 33 cm. U cijenu je uračunat i pribor za montažu.","m1",3.6,null,{"$f":"D31*E31","v":0}]
[]
["1.8.","Izrada, dobava i montaža horizontalnih vjetarlajsne spoja zida i krovane plohe od bojenog pocinčanog lima debljine 0,50 mm, razvijene širine 100 cm. U cijenu je uračunat i pribor za montažu.","m1",3.5,null,{"$f":"D33*E33","v":0}]
[]
["1.9.","Izrada, dobava i montaža lima za pokrivanje valova na dijelu krovne plohe uzvodno od rekonstuirane krovne plohe od bojenog pocinčanog lima debljine 0,50 mm. U cijenu je uračunat i pribor za montažu.","m2",{"$f":"3.5*3.2","v":11.200000000000001},null,{"$f":"D35*E35","v":0}]
[]
["1.10.","Žbukanje novih zabatnih zidova vapneno-cementnom žbukom u dva sloja grubo i fino uz prethodno prskanje rijetkim cementnim mortom. Uključena upotreba fasadne skele.","m2",21,null,{"$f":"D37*E37","v":0}]
[null,null,null,null,null,{"$f":"D38*E38","v":0}]
["1.11.","Popravak žbuke na unutarnjim zidovima i stropovima nakon izrade nove krovne konstrukcije vapneno-cementnom žbukom u dva sloja grubo i fino uz prethodno prskanje rijetkim cementnim mortom. Uključena upotreba pomoćne skele.","m2",5,null,0]
[null,null,null,null,null,0]
["1.12.","Priprema zidova, stropova i greda za bojenje. Stavka uključuje skidanje starih slojeva boje i gletanje vapnenom masom uz prethodnu impregnaciju podloge.  Uključivo sav potreban rad i materijal do potpunog izravnavanja i pripreme za bojanje.","m2",130,null,0]
[null,null,null,null,null,0]
["1.13.","Bojenje unutarnjih zidova, stropova i greda perivim poludisperzivnim bojama. Boja po izboru projektanta i investitora. ","m2",130,null,0]
[null,null,null,null,null,0]
["1.14.","Izrada završnog fasadog sloja novoizvedenog zida atike plastificiranom dekorativnom žbukom sa prethodnim gletanjem i impregnacijom podloge","m2",21,null,{"$f":"D45*E45","v":0}]
[]
[]
[null,"UKUPNO:",null,null,null,{"$f":"SUM(F16:F47)","v":0}]
[]
[]
[]
[]
[]
[null,"REKAPITULACIJA GRAĐEVINSKO-OBRTNIČKIH RADOVA:"]
[]
["I","KOSI KROV",null,null,null,{"$f":"F48","v":0}]
[]
[null,"Ukupna cijena ponude u € bez PDV-a:",null,null,null,{"$f":"SUM(F56:F57)","v":0}]
[null,null,null,null,"PDV 25%:",{"$f":"F58*0.25","v":0}]
[null,"Ukupna cijena ponude u € sa PDV-om:",null,null,null,{"$f":"SUM(F58:F59)","v":0}]
[]
[]
[]
[]
[]
[null,null,"           (žig i potpis ponuditelja)"]
[]
["U ___________________, dana_____________2024. godine."]
[]
[]
["Sastavila:",null,null,null,null,{"$f":"D71*E71","v":0}]
["Marica Prohaska ing.građ.",null,null,null,null,0]
[null,null,null,null,null,0]
[null,null,null,null,null,0]
[null,null,null,null,null,0]
[null,null,null,null,null,0]
[null,null,null,null,null,0]
[null,null,null,null,null,{"$f":"D78*E78","v":0}]
[null,null,null,null,null,0]
[null,null,null,null,null,0]
[null,null,null,null,null,0]
[null,null,null,null,null,0]
[null,null,null,null,null,{"$f":"D83*E83","v":0}]
[null,null,null,null,null,0]
[null,null,null,null,null,0]
[null,null,null,null,null,0]
[null,null,null,null,null,0]
[null,null,null,null,null,0]
[null,null,null,null,null,0]
[null,null,null,null,null,0]
[null,null,null,null,null,0]
[null,null,null,null,null,0]
[null,null,null,null,null,0]
[null,null,null,null,null,0]
[null,null,null,null,null,0]
[null,null,null,null,null,0]
[null,null,null,null,null,0]
[null,null,null,null,null,0]
[null,null,null,null,null,0]
[null,null,null,null,null,0]
[null,null,null,null,null,0]
[null,null,null,null,null,0]
[null,null,null,null,null,0]
[null,null,null,null,null,0]
[null,null,null,null,null,0]
[null,null,null,null,null,0]
[null,null,null,null,null,0]
[null,null,null,null,null,0]
[null,null,null,null,null,0]
[null,null,null,null,null,0]
[null,null,null,null,null,0]
[null,null,null,null,null,0]
[null,null,null,null,null,0]
[null,null,null,null,null,0]
[null,null,null,null,null,0]
[null,null,null,null,null,0]
[null,null,null,null,null,0]
[null,null,null,null,null,0]
[null,null,null,null,null,0]
[null,null,null,null,null,0]
[null,null,null,null,null,0]
[null,null,null,null,null,0]
[null,null,null,null,null,0]
[null,null,null,null,null,0]
[null,null,null,null,null,0]
[null,null,null,null,null,0]
[null,null,null,null,null,0]
[null,null,null,null,null,0]
[null,null,null,null,null,0]
[null,null,null,null,null,0]
[null,null,null,null,null,0]
[null,null,null,null,null,0]
[null,null,null,null,null,0]
[null,null,null,null,null,0]
[null,null,null,null,null,0]
[null,null,null,null,null,0]
[null,null,null,null,null,0]
[null,null,null,null,null,0]
[null,null,null,null,null,0]
[null,null,null,null,null,0]
[null,null,null,null,null,0]
[null,null,null,null,null,0]
[null,null,null,null,null,0]
[null,null,null,null,null,0]
[null,null,null,null,null,0]
[null,null,null,null,null,0]
[null,null,null,null,null,{"$f":"D147*E147","v":0}]
[null,null,null,null,null,0]
[null,null,null,null,null,0]
[null,null,null,null,null,0]
[null,null,null,null,null,0]
[null,null,null,null,null,0]
[null,null,null,null,null,0]
[null,null,null,null,null,0]
[null,null,null,null,null,0]
[null,null,null,null,null,0]
[null,null,null,null,null,0]
[null,null,null,null,null,0]
[null,null,null,null,null,0]
[null,null,null,null,null,0]
[null,null,null,null,null,0]
[null,null,null,null,null,0]
[null,null,null,null,null,0]
[null,null,null,null,null,0]
[null,null,null,null,null,0]
[null,null,null,null,null,0]
[null,null,null,null,null,0]
[null,null,null,null,null,0]
[null,null,null,null,null,0]
[null,null,null,null,null,0]
[null,null,null,null,null,0]
[null,null,null,null,null,0]
[null,null,null,null,null,0]
[null,null,null,null,null,0]
[null,null,null,null,null,0]
[null,null,null,null,null,0]
[null,null,null,null,null,0]
[null,null,null,null,null,0]
[null,null,null,null,null,0]
[null,null,null,null,null,0]
[null,null,null,null,null,0]
[null,null,null,null,null,0]
[null,null,null,null,null,0]
[null,null,null,null,null,0]
[null,null,null,null,null,0]
[null,null,null,null,null,0]
[null,null,null,null,null,0]
[null,null,null,null,null,0]
[null,null,null,null,null,0]
[null,null,null,null,null,0]
[null,null,null,null,null,0]
[null,null,null,null,null,0]
[null,null,null,null,null,0]
[null,null,null,null,null,0]
[null,null,null,null,null,0]
[null,null,null,null,null,0]
[null,null,null,null,null,0]
[null,null,null,null,null,0]
[null,null,null,null,null,0]
[null,null,null,null,null,0]
[null,null,null,null,null,0]
[null,null,null,null,null,0]
[null,null,null,null,null,0]
[null,null,null,null,null,0]
[null,null,null,null,null,0]
[null,null,null,null,null,0]
[null,null,null,null,null,0]
[null,null,null,null,null,0]
[null,null,null,null,null,0]
[null,null,null,null,null,0]
[null,null,null,null,null,{"$f":"D211*E211","v":0}]
[null,null,null,null,null,0]
[null,null,null,null,null,0]
[null,null,null,null,null,0]
[null,null,null,null,null,0]
[null,null,null,null,null,0]
[null,null,null,null,null,0]
[null,null,null,null,null,0]
[null,null,null,null,null,0]
[null,null,null,null,null,0]
[null,null,null,null,null,0]
[null,null,null,null,null,0]
[null,null,null,null,null,0]
[null,null,null,null,null,0]
[null,null,null,null,null,0]
[null,null,null,null,null,0]
[null,null,null,null,null,0]
[null,null,null,null,null,0]
[null,null,null,null,null,0]
[null,null,null,null,null,0]
[null,null,null,null,null,0]
[null,null,null,null,null,0]
[null,null,null,null,null,0]
[null,null,null,null,null,0]
[null,null,null,null,null,0]
[null,null,null,null,null,0]
[null,null,null,null,null,0]
[null,null,null,null,null,0]
[null,null,null,null,null,0]
[null,null,null,null,null,0]
[null,null,null,null,null,0]
[null,null,null,null,null,0]
[null,null,null,null,null,0]
[null,null,null,null,null,0]
[null,null,null,null,null,0]
[null,null,null,null,null,0]
[null,null,null,null,null,0]
[null,null,null,null,null,0]
[null,null,null,null,null,0]
[null,null,null,null,null,0]
[null,null,null,null,null,0]
[null,null,null,null,null,0]
[null,null,null,null,null,0]
[null,null,null,null,null,0]
[null,null,null,null,null,0]
[null,null,null,null,null,0]
[null,null,null,null,null,0]
[null,null,null,null,null,0]
[null,null,null,null,null,0]
[null,null,null,null,null,0]
[null,null,null,null,null,0]
[null,null,null,null,null,0]
[null,null,null,null,null,0]
[null,null,null,null,null,0]
[null,null,null,null,null,0]
[null,null,null,null,null,0]
[null,null,null,null,null,0]
[null,null,null,null,null,0]
[null,null,null,null,null,0]
[null,null,null,null,null,0]
[null,null,null,null,null,0]
[null,null,null,null,null,0]
[null,null,null,null,null,0]
[null,null,null,null,null,0]
[null,null,null,null,null,{"$f":"D275*E275","v":0}]
[null,null,null,null,null,0]
[null,null,null,null,null,0]
[null,null,null,null,null,0]
[null,null,null,null,null,0]
[null,null,null,null,null,0]
[null,null,null,null,null,0]
[null,null,null,null,null,0]
[null,null,null,null,null,0]
[null,null,null,null,null,0]
[null,null,null,null,null,0]
[null,null,null,null,null,0]
[null,null,null,null,null,0]
[null,null,null,null,null,0]
[null,null,null,null,null,0]
[null,null,null,null,null,0]
[null,null,null,null,null,0]
[null,null,null,null,null,0]
[null,null,null,null,null,0]
[null,null,null,null,null,0]
[null,null,null,null,null,0]
[null,null,null,null,null,0]
[null,null,null,null,null,0]
[null,null,null,null,null,0]
[null,null,null,null,null,0]
[null,null,null,null,null,0]
[null,null,null,null,null,0]
[null,null,null,null,null,0]
[null,null,null,null,null,0]
[null,null,null,null,null,0]
[null,null,null,null,null,0]
[null,null,null,null,null,0]
[null,null,null,null,null,0]
[null,null,null,null,null,0]
[null,null,null,null,null,0]
[null,null,null,null,null,0]
[null,null,null,null,null,0]
[null,null,null,null,null,0]
[null,null,null,null,null,0]
[null,null,null,null,null,0]
[null,null,null,null,null,0]
[null,null,null,null,null,0]
[null,null,null,null,null,0]
[null,null,null,null,null,0]
[null,null,null,null,null,0]
[null,null,null,null,null,0]
[null,null,null,null,null,0]
[null,null,null,null,null,0]
[null,null,null,null,null,0]
[null,null,null,null,null,0]
[null,null,null,null,null,0]
[null,null,null,null,null,0]
[null,null,null,null,null,0]
[null,null,null,null,null,0]
[null,null,null,null,null,0]
[null,null,null,null,null,0]
[null,null,null,null,null,0]
[null,null,null,null,null,0]
[null,null,null,null,null,0]
[null,null,null,null,null,0]
[null,null,null,null,null,0]
[null,null,null,null,null,0]
[null,null,null,null,null,0]
[null,null,null,null,null,0]
[null,null,null,null,null,{"$f":"D339*E339","v":0}]
[null,null,null,null,null,0]
[null,null,null,null,null,0]
[null,null,null,null,null,0]
[null,null,null,null,null,0]
[null,null,null,null,null,0]
[null,null,null,null,null,0]
[null,null,null,null,null,0]
[null,null,null,null,null,0]
[null,null,null,null,null,0]
[null,null,null,null,null,0]
[null,null,null,null,null,0]
[null,null,null,null,null,0]
[null,null,null,null,null,0]
[null,null,null,null,null,0]
[null,null,null,null,null,0]
[null,null,null,null,null,0]
[null,null,null,null,null,0]
[null,null,null,null,null,0]
[null,null,null,null,null,0]
[null,null,null,null,null,0]
[null,null,null,null,null,0]
[null,null,null,null,null,0]
[null,null,null,null,null,0]
[null,null,null,null,null,0]
[null,null,null,null,null,0]
[null,null,null,null,null,0]
[null,null,null,null,null,0]
[null,null,null,null,null,0]
[null,null,null,null,null,0]
[null,null,null,null,null,0]
[null,null,null,null,null,0]
[null,null,null,null,null,0]
[null,null,null,null,null,0]
[null,null,null,null,null,0]
[null,null,null,null,null,0]
[null,null,null,null,null,0]
[null,null,null,null,null,0]
[null,null,null,null,null,0]
[null,null,null,null,null,0]
[null,null,null,null,null,0]
[null,null,null,null,null,0]
[null,null,null,null,null,0]
[null,null,null,null,null,0]
[null,null,null,null,null,0]
[null,null,null,null,null,0]
[null,null,null,null,null,0]
[null,null,null,null,null,0]
[null,null,null,null,null,0]
[null,null,null,null,null,0]
[null,null,null,null,null,0]
[null,null,null,null,null,0]
[null,null,null,null,null,0]
[null,null,null,null,null,0]
[null,null,null,null,null,0]
[null,null,null,null,null,0]
[null,null,null,null,null,0]
[null,null,null,null,null,0]
[null,null,null,null,null,0]
[null,null,null,null,null,0]
[null,null,null,null,null,0]
[null,null,null,null,null,0]
[null,null,null,null,null,0]
[null,null,null,null,null,0]
[null,null,null,null,null,{"$f":"D403*E403","v":0}]
[null,null,null,null,null,0]
[null,null,null,null,null,0]
[null,null,null,null,null,0]
[null,null,null,null,null,0]
[null,null,null,null,null,0]
[null,null,null,null,null,0]
[null,null,null,null,null,0]
[null,null,null,null,null,0]
[null,null,null,null,null,0]
[null,null,null,null,null,0]
[null,null,null,null,null,0]
[null,null,null,null,null,0]
[null,null,null,null,null,0]
[null,null,null,null,null,0]
[null,null,null,null,null,0]
[null,null,null,null,null,0]
[null,null,null,null,null,0]
[null,null,null,null,null,0]
[null,null,null,null,null,0]
[null,null,null,null,null,0]
[null,null,null,null,null,0]
[null,null,null,null,null,0]
[null,null,null,null,null,0]
[null,null,null,null,null,0]
[null,null,null,null,null,0]
[null,null,null,null,null,0]
[null,null,null,null,null,0]
[null,null,null,null,null,0]
[null,null,null,null,null,0]
[null,null,null,null,null,0]
[null,null,null,null,null,0]
[null,null,null,null,null,0]
[null,null,null,null,null,0]
[null,null,null,null,null,0]
[null,null,null,null,null,0]
[null,null,null,null,null,0]
[null,null,null,null,null,0]
[null,null,null,null,null,0]
[null,null,null,null,null,0]
[null,null,null,null,null,0]
[null,null,null,null,null,0]
[null,null,null,null,null,0]
[null,null,null,null,null,0]
[null,null,null,null,null,0]
[null,null,null,null,null,0]
[null,null,null,null,null,0]
[null,null,null,null,null,0]
[null,null,null,null,null,0]
[null,null,null,null,null,0]
[null,null,null,null,null,0]
[null,null,null,null,null,0]
[null,null,null,null,null,0]
[null,null,null,null,null,0]
[null,null,null,null,null,0]
[null,null,null,null,null,0]
[null,null,null,null,null,0]
[null,null,null,null,null,0]
[null,null,null,null,null,0]
[null,null,null,null,null,0]
[null,null,null,null,null,0]
[null,null,null,null,null,0]
[null,null,null,null,null,0]
[null,null,null,null,null,0]
[null,null,null,null,null,{"$f":"D467*E467","v":0}]
[null,null,null,null,null,0]
[null,null,null,null,null,0]
[null,null,null,null,null,0]
[null,null,null,null,null,0]
[null,null,null,null,null,0]
[null,null,null,null,null,0]
[null,null,null,null,null,0]
[null,null,null,null,null,0]
[null,null,null,null,null,0]
[null,null,null,null,null,0]
[null,null,null,null,null,0]
[null,null,null,null,null,0]
[null,null,null,null,null,0]
[null,null,null,null,null,0]
[null,null,null,null,null,0]
[null,null,null,null,null,0]
[null,null,null,null,null,0]
[null,null,null,null,null,0]
[null,null,null,null,null,0]
[null,null,null,null,null,0]
[null,null,null,null,null,0]
[null,null,null,null,null,0]
[null,null,null,null,null,0]
[null,null,null,null,null,0]
[null,null,null,null,null,0]
[null,null,null,null,null,0]
[null,null,null,null,null,0]
[null,null,null,null,null,0]
[null,null,null,null,null,0]
[null,null,null,null,null,0]
[null,null,null,null,null,0]
[null,null,null,null,null,0]
[null,null,null,null,null,0]
[null,null,null,null,null,0]
[null,null,null,null,null,0]
[null,null,null,null,null,0]
[null,null,null,null,null,0]
[null,null,null,null,null,0]
[null,null,null,null,null,0]
[null,null,null,null,null,0]
[null,null,null,null,null,0]
[null,null,null,null,null,0]
[null,null,null,null,null,0]
[null,null,null,null,null,0]
[null,null,null,null,null,0]
[null,null,null,null,null,0]
[null,null,null,null,null,0]
[null,null,null,null,null,0]
[null,null,null,null,null,0]
[null,null,null,null,null,0]
[null,null,null,null,null,0]
[null,null,null,null,null,0]
[null,null,null,null,null,0]
[null,null,null,null,null,0]
[null,null,null,null,null,0]
[null,null,null,null,null,0]
[null,null,null,null,null,0]
[null,null,null,null,null,0]
[null,null,null,null,null,0]
[null,null,null,null,null,0]
[null,null,null,null,null,0]
[null,null,null,null,null,0]
[null,null,null,null,null,0]
[null,null,null,null,null,{"$f":"D531*E531","v":0}]
[null,null,null,null,null,0]
[null,null,null,null,null,0]
[null,null,null,null,null,0]
[null,null,null,null,null,0]
[null,null,null,null,null,0]
[null,null,null,null,null,0]
[null,null,null,null,null,0]
[null,null,null,null,null,0]
[null,null,null,null,null,0]
[null,null,null,null,null,0]
[null,null,null,null,null,0]
[null,null,null,null,null,0]
[null,null,null,null,null,0]
[null,null,null,null,null,0]
[null,null,null,null,null,0]
[null,null,null,null,null,0]
[null,null,null,null,null,0]
[null,null,null,null,null,0]
[null,null,null,null,null,0]
[null,null,null,null,null,0]
[null,null,null,null,null,0]
[null,null,null,null,null,0]
[null,null,null,null,null,0]
[null,null,null,null,null,0]
[null,null,null,null,null,0]
[null,null,null,null,null,0]
[null,null,null,null,null,0]
[null,null,null,null,null,0]
[null,null,null,null,null,0]
[null,null,null,null,null,0]
[null,null,null,null,null,0]
[null,null,null,null,null,0]
[null,null,null,null,null,0]
[null,null,null,null,null,0]
[null,null,null,null,null,0]
[null,null,null,null,null,0]
[null,null,null,null,null,0]
[null,null,null,null,null,0]
[null,null,null,null,null,0]
[null,null,null,null,null,0]
[null,null,null,null,null,0]
[null,null,null,null,null,0]
[null,null,null,null,null,0]
[null,null,null,null,null,0]
[null,null,null,null,null,0]
[null,null,null,null,null,0]
[null,null,null,null,null,0]
[null,null,null,null,null,0]
[null,null,null,null,null,0]
[null,null,null,null,null,0]
[null,null,null,null,null,0]
[null,null,null,null,null,0]
[null,null,null,null,null,0]
[null,null,null,null,null,0]
[null,null,null,null,null,0]
[null,null,null,null,null,0]
[null,null,null,null,null,0]
[null,null,null,null,null,0]
[null,null,null,null,null,0]
[null,null,null,null,null,0]
[null,null,null,null,null,0]
[null,null,null,null,null,0]
[null,null,null,null,null,0]
[null,null,null,null,null,{"$f":"D595*E595","v":0}]
[null,null,null,null,null,0]
[null,null,null,null,null,0]
[null,null,null,null,null,0]
[null,null,null,null,null,0]
[null,null,null,null,null,0]
[null,null,null,null,null,0]
[null,null,null,null,null,0]
[null,null,null,null,null,0]
[null,null,null,null,null,0]
[null,null,null,null,null,0]
[null,null,null,null,null,0]
[null,null,null,null,null,0]
[null,null,null,null,null,0]
[null,null,null,null,null,0]
[null,null,null,null,null,0]
[null,null,null,null,null,0]
[null,null,null,null,null,0]
[null,null,null,null,null,0]
[null,null,null,null,null,0]
[null,null,null,null,null,0]
[null,null,null,null,null,0]
[null,null,null,null,null,0]
[null,null,null,null,null,0]
[null,null,null,null,null,0]
[null,null,null,null,null,0]
[null,null,null,null,null,0]
[null,null,null,null,null,0]
[null,null,null,null,null,0]
[null,null,null,null,null,0]
[null,null,null,null,null,0]
[null,null,null,null,null,0]
[null,null,null,null,null,0]
[null,null,null,null,null,0]
[null,null,null,null,null,0]
[null,null,null,null,null,0]
[null,null,null,null,null,0]
[null,null,null,null,null,0]
[null,null,null,null,null,0]
[null,null,null,null,null,0]
[null,null,null,null,null,0]
[null,null,null,null,null,0]
[null,null,null,null,null,0]
[null,null,null,null,null,0]
[null,null,null,null,null,0]
[null,null,null,null,null,0]
[null,null,null,null,null,0]
[null,null,null,null,null,0]
[null,null,null,null,null,0]
[null,null,null,null,null,0]
[null,null,null,null,null,0]
[null,null,null,null,null,0]
[null,null,null,null,null,0]
[null,null,null,null,null,0]
[null,null,null,null,null,0]
[null,null,null,null,null,0]
[null,null,null,null,null,0]
[null,null,null,null,null,0]
[null,null,null,null,null,0]
[null,null,null,null,null,0]
[null,null,null,null,null,0]
[null,null,null,null,null,0]
[null,null,null,null,null,0]
[null,null,null,null,null,0]
[null,null,null,null,null,{"$f":"D659*E659","v":0}]
[null,null,null,null,null,0]
[null,null,null,null,null,0]
[null,null,null,null,null,0]
[null,null,null,null,null,0]
[null,null,null,null,null,0]
[null,null,null,null,null,0]
[null,null,null,null,null,0]
[null,null,null,null,null,0]
[null,null,null,null,null,0]
[null,null,null,null,null,0]
[null,null,null,null,null,0]
[null,null,null,null,null,0]
[null,null,null,null,null,0]
[null,null,null,null,null,0]
[null,null,null,null,null,0]
[null,null,null,null,null,0]
[null,null,null,null,null,0]
[null,null,null,null,null,0]
[null,null,null,null,null,0]
[null,null,null,null,null,0]
[null,null,null,null,null,0]
[null,null,null,null,null,0]
[null,null,null,null,null,0]
[null,null,null,null,null,0]
[null,null,null,null,null,0]
[null,null,null,null,null,0]
[null,null,null,null,null,0]
[null,null,null,null,null,0]
[null,null,null,null,null,0]
[null,null,null,null,null,0]
[null,null,null,null,null,0]
[null,null,null,null,null,0]
[null,null,null,null,null,0]
[null,null,null,null,null,0]
[null,null,null,null,null,0]
[null,null,null,null,null,0]
[null,null,null,null,null,0]
[null,null,null,null,null,0]
[null,null,null,null,null,0]
[null,null,null,null,null,0]
[null,null,null,null,null,0]
[null,null,null,null,null,0]
[null,null,null,null,null,0]
[null,null,null,null,null,0]
[null,null,null,null,null,0]
[null,null,null,null,null,0]
[null,null,null,null,null,0]
[null,null,null,null,null,0]
[null,null,null,null,null,0]
[null,null,null,null,null,0]
[null,null,null,null,null,0]
[null,null,null,null,null,0]
[null,null,null,null,null,0]
[null,null,null,null,null,0]
[null,null,null,null,null,0]
[null,null,null,null,null,0]
[null,null,null,null,null,0]
[null,null,null,null,null,0]
[null,null,null,null,null,0]
[null,null,null,null,null,0]
[null,null,null,null,null,0]
[null,null,null,null,null,0]
[null,null,null,null,null,0]
[null,null,null,null,null,{"$f":"D723*E723","v":0}]
[null,null,null,null,null,0]
[null,null,null,null,null,0]
[null,null,null,null,null,0]
[null,null,null,null,null,0]
[null,null,null,null,null,0]
[null,null,null,null,null,0]
[null,null,null,null,null,0]
[null,null,null,null,null,0]
[null,null,null,null,null,0]
[null,null,null,null,null,0]
[null,null,null,null,null,0]
[null,null,null,null,null,0]
[null,null,null,null,null,0]
[null,null,null,null,null,0]
[null,null,null,null,null,0]
[null,null,null,null,null,0]
[null,null,null,null,null,0]
[null,null,null,null,null,0]
[null,null,null,null,null,0]
[null,null,null,null,null,0]
[null,null,null,null,null,0]
[null,null,null,null,null,0]
[null,null,null,null,null,0]
[null,null,null,null,null,0]
[null,null,null,null,null,0]
[null,null,null,null,null,0]
[null,null,null,null,null,0]
[null,null,null,null,null,0]
[null,null,null,null,null,0]
[null,null,null,null,null,0]
[null,null,null,null,null,0]
[null,null,null,null,null,0]
[null,null,null,null,null,0]
[null,null,null,null,null,0]
[null,null,null,null,null,0]
[null,null,null,null,null,0]
[null,null,null,null,null,0]
[null,null,null,null,null,0]
[null,null,null,null,null,0]
[null,null,null,null,null,0]
[null,null,null,null,null,0]
[null,null,null,null,null,0]
[null,null,null,null,null,0]
[null,null,null,null,null,0]
[null,null,null,null,null,0]
[null,null,null,null,null,0]
[null,null,null,null,null,0]
[null,null,null,null,null,0]
[null,null,null,null,null,0]
[null,null,null,null,null,0]
[null,null,null,null,null,0]
[null,null,null,null,null,0]
[null,null,null,null,null,0]
[null,null,null,null,null,0]
[null,null,null,null,null,0]
[null,null,null,null,null,0]
[null,null,null,null,null,0]
[null,null,null,null,null,0]
[null,null,null,null,null,0]
[null,null,null,null,null,0]
[null,null,null,null,null,0]
[null,null,null,null,null,0]
[null,null,null,null,null,0]
[null,null,null,null,null,{"$f":"D787*E787","v":0}]
[null,null,null,null,null,0]
[null,null,null,null,null,0]
[null,null,null,null,null,0]
[null,null,null,null,null,0]
[null,null,null,null,null,0]
[null,null,null,null,null,0]
[null,null,null,null,null,0]
[null,null,null,null,null,0]
[null,null,null,null,null,0]
[null,null,null,null,null,0]
[null,null,null,null,null,0]
[null,null,null,null,null,0]
[null,null,null,null,null,0]
[null,null,null,null,null,0]
[null,null,null,null,null,0]
[null,null,null,null,null,0]
[null,null,null,null,null,0]
[null,null,null,null,null,0]
[null,null,null,null,null,0]
[null,null,null,null,null,0]
[null,null,null,null,null,0]
[null,null,null,null,null,0]
[null,null,null,null,null,0]
[null,null,null,null,null,0]
[null,null,null,null,null,0]
[null,null,null,null,null,0]
[null,null,null,null,null,0]
[null,null,null,null,null,0]
[null,null,null,null,null,0]
[null,null,null,null,null,0]
[null,null,null,null,null,0]
[null,null,null,null,null,0]
[null,null,null,null,null,0]
[null,null,null,null,null,0]
[null,null,null,null,null,0]
[null,null,null,null,null,0]
[null,null,null,null,null,0]
[null,null,null,null,null,0]
[null,null,null,null,null,0]
[null,null,null,null,null,0]
[null,null,null,null,null,0]
[null,null,null,null,null,0]
[null,null,null,null,null,0]
[null,null,null,null,null,0]
[null,null,null,null,null,0]
[null,null,null,null,null,0]
[null,null,null,null,null,0]
[null,null,null,null,null,0]
[null,null,null,null,null,0]
[null,null,null,null,null,0]
[null,null,null,null,null,0]
[null,null,null,null,null,0]
[null,null,null,null,null,0]
[null,null,null,null,null,0]
[null,null,null,null,null,0]
[null,null,null,null,null,0]
[null,null,null,null,null,0]
[null,null,null,null,null,0]
[null,null,null,null,null,0]
[null,null,null,null,null,0]
[null,null,null,null,null,0]
[null,null,null,null,null,0]
[null,null,null,null,null,0]
[null,null,null,null,null,{"$f":"D851*E851","v":0}]
[null,null,null,null,null,0]
[null,null,null,null,null,0]
[null,null,null,null,null,0]
[null,null,null,null,null,0]
[null,null,null,null,null,0]
[null,null,null,null,null,0]
[null,null,null,null,null,0]
[null,null,null,null,null,0]
[null,null,null,null,null,0]
[null,null,null,null,null,0]
[null,null,null,null,null,0]
[null,null,null,null,null,0]
[null,null,null,null,null,0]
[null,null,null,null,null,0]
[null,null,null,null,null,0]
[null,null,null,null,null,0]
[null,null,null,null,null,0]
[null,null,null,null,null,0]
[null,null,null,null,null,0]
[null,null,null,null,null,0]
[null,null,null,null,null,0]
[null,null,null,null,null,0]
[null,null,null,null,null,0]
[null,null,null,null,null,0]
[null,null,null,null,null,0]
[null,null,null,null,null,0]
[null,null,null,null,null,0]
[null,null,null,null,null,0]
[null,null,null,null,null,0]
[null,null,null,null,null,0]
[null,null,null,null,null,0]
[null,null,null,null,null,0]
[null,null,null,null,null,0]
[null,null,null,null,null,0]
[null,null,null,null,null,0]
[null,null,null,null,null,0]
[null,null,null,null,null,0]
[null,null,null,null,null,0]
[null,null,null,null,null,0]
[null,null,null,null,null,0]
[null,null,null,null,null,0]
[null,null,null,null,null,0]
[null,null,null,null,null,0]
[null,null,null,null,null,0]
[null,null,null,null,null,0]
[null,null,null,null,null,0]
[null,null,null,null,null,0]
[null,null,null,null,null,0]
[null,null,null,null,null,0]
[null,null,null,null,null,0]
[null,null,null,null,null,0]
[null,null,null,null,null,0]
[null,null,null,null,null,0]
[null,null,null,null,null,0]
[null,null,null,null,null,0]
[null,null,null,null,null,0]
[null,null,null,null,null,0]
[null,null,null,null,null,0]
[null,null,null,null,null,0]
[null,null,null,null,null,0]
[null,null,null,null,null,0]
[null,null,null,null,null,0]
[null,null,null,null,null,0]
[null,null,null,null,null,{"$f":"D915*E915","v":0}]
[null,null,null,null,null,0]
[null,null,null,null,null,0]
[null,null,null,null,null,0]
[null,null,null,null,null,0]
[null,null,null,null,null,0]
[null,null,null,null,null,0]
[null,null,null,null,null,0]
[null,null,null,null,null,0]
[null,null,null,null,null,0]
[null,null,null,null,null,0]
[null,null,null,null,null,0]
[null,null,null,null,null,0]
[null,null,null,null,null,0]
[null,null,null,null,null,0]
[null,null,null,null,null,0]
[null,null,null,null,null,0]
[null,null,null,null,null,0]
[null,null,null,null,null,0]
[null,null,null,null,null,0]
[null,null,null,null,null,0]
[null,null,null,null,null,0]
[null,null,null,null,null,0]
[null,null,null,null,null,0]
[null,null,null,null,null,0]
[null,null,null,null,null,0]
[null,null,null,null,null,0]
[null,null,null,null,null,0]
[null,null,null,null,null,0]
[null,null,null,null,null,0]
[null,null,null,null,null,0]
[null,null,null,null,null,0]
[null,null,null,null,null,0]
[null,null,null,null,null,0]
[null,null,null,null,null,0]
[null,null,null,null,null,0]
[null,null,null,null,null,0]
[null,null,null,null,null,0]
[null,null,null,null,null,0]
[null,null,null,null,null,0]
[null,null,null,null,null,0]
[null,null,null,null,null,0]
[null,null,null,null,null,0]
[null,null,null,null,null,0]
[null,null,null,null,null,0]
[null,null,null,null,null,0]
[null,null,null,null,null,0]
[null,null,null,null,null,0]
[null,null,null,null,null,0]
[null,null,null,null,null,0]
[null,null,null,null,null,0]
[null,null,null,null,null,0]
[null,null,null,null,null,0]
[null,null,null,null,null,0]
[null,null,null,null,null,0]
[null,null,null,null,null,0]
[null,null,null,null,null,0]
[null,null,null,null,null,0]
[null,null,null,null,null,0]
[null,null,null,null,null,0]
[null,null,null,null,null,0]
[null,null,null,null,null,0]
[null,null,null,null,null,0]
[null,null,null,null,null,0]
[null,null,null,null,null,{"$f":"D979*E979","v":0}]
[null,null,null,null,null,0]
[null,null,null,null,null,0]
[null,null,null,null,null,0]
[null,null,null,null,null,0]
[null,null,null,null,null,0]
[null,null,null,null,null,0]
[null,null,null,null,null,0]
[null,null,null,null,null,0]
[null,null,null,null,null,0]
[null,null,null,null,null,0]
[null,null,null,null,null,0]
[null,null,null,null,null,0]
[null,null,null,null,null,0]
[null,null,null,null,null,0]
[null,null,null,null,null,0]
[null,null,null,null,null,0]
[null,null,null,null,null,0]
[null,null,null,null,null,0]
[null,null,null,null,null,0]
[null,null,null,null,null,0]
[null,null,null,null,null,0]
[null,null,null,null,null,0]
[null,null,null,null,null,0]
[null,null,null,null,null,0]
[null,null,null,null,null,0]
[null,null,null,null,null,0]
[null,null,null,null,null,0]
[null,null,null,null,null,0]
[null,null,null,null,null,0]
[null,null,null,null,null,0]
[null,null,null,null,null,0]
[null,null,null,null,null,0]
[null,null,null,null,null,0]
[null,null,null,null,null,0]
[null,null,null,null,null,0]
[null,null,null,null,null,0]
[null,null,null,null,null,0]
[null,null,null,null,null,0]
[null,null,null,null,null,0]
[null,null,null,null,null,0]
[null,null,null,null,null,0]
[null,null,null,null,null,0]
[null,null,null,null,null,0]
[null,null,null,null,null,0]
[null,null,null,null,null,0]
[null,null,null,null,null,0]
[null,null,null,null,null,0]
[null,null,null,null,null,0]
[null,null,null,null,null,0]
[null,null,null,null,null,0]
[null,null,null,null,null,0]
[null,null,null,null,null,0]
[null,null,null,null,null,0]
[null,null,null,null,null,0]
[null,null,null,null,null,0]
[null,null,null,null,null,0]
[null,null,null,null,null,0]
[null,null,null,null,null,0]
[null,null,null,null,null,0]
[null,null,null,null,null,0]
[null,null,null,null,null,0]
[null,null,null,null,null,0]
[null,null,null,null,null,0]
[null,null,null,null,null,{"$f":"D1043*E1043","v":0}]
[null,null,null,null,null,0]
[null,null,null,null,null,0]
[null,null,null,null,null,0]
[null,null,null,null,null,0]
[null,null,null,null,null,0]
[null,null,null,null,null,0]
[null,null,null,null,null,0]
[null,null,null,null,null,0]
[null,null,null,null,null,0]
[null,null,null,null,null,0]
[null,null,null,null,null,0]
[null,null,null,null,null,0]
[null,null,null,null,null,0]
[null,null,null,null,null,0]
[null,null,null,null,null,0]
[null,null,null,null,null,0]
[null,null,null,null,null,0]
[null,null,null,null,null,0]
[null,null,null,null,null,0]
[null,null,null,null,null,0]
[null,null,null,null,null,0]
[null,null,null,null,null,0]
[null,null,null,null,null,0]
[null,null,null,null,null,0]
[null,null,null,null,null,0]
[null,null,null,null,null,0]
[null,null,null,null,null,0]
[null,null,null,null,null,0]
[null,null,null,null,null,0]
[null,null,null,null,null,0]
[null,null,null,null,null,0]
[null,null,null,null,null,0]
[null,null,null,null,null,0]
[null,null,null,null,null,0]
[null,null,null,null,null,0]
[null,null,null,null,null,0]
[null,null,null,null,null,0]
[null,null,null,null,null,0]
[null,null,null,null,null,0]
[null,null,null,null,null,0]
[null,null,null,null,null,0]
[null,null,null,null,null,0]
[null,null,null,null,null,0]
[null,null,null,null,null,0]
[null,null,null,null,null,0]
[null,null,null,null,null,0]
[null,null,null,null,null,0]
[null,null,null,null,null,0]
[null,null,null,null,null,0]
[null,null,null,null,null,0]
[null,null,null,null,null,0]
[null,null,null,null,null,0]
[null,null,null,null,null,0]
[null,null,null,null,null,0]
[null,null,null,null,null,0]
[null,null,null,null,null,0]
[null,null,null,null,null,0]
[null,null,null,null,null,0]
[null,null,null,null,null,0]
[null,null,null,null,null,0]
[null,null,null,null,null,0]
[null,null,null,null,null,0]
[null,null,null,null,null,0]
[null,null,null,null,null,{"$f":"D1107*E1107","v":0}]
[null,null,null,null,null,0]
[null,null,null,null,null,0]
[null,null,null,null,null,0]
[null,null,null,null,null,0]
[null,null,null,null,null,0]
[null,null,null,null,null,0]
[null,null,null,null,null,0]
[null,null,null,null,null,0]
[null,null,null,null,null,0]
[null,null,null,null,null,0]
[null,null,null,null,null,0]
[null,null,null,null,null,0]
[null,null,null,null,null,0]
[null,null,null,null,null,0]
[null,null,null,null,null,0]
[null,null,null,null,null,0]
[null,null,null,null,null,0]
[null,null,null,null,null,0]
[null,null,null,null,null,0]
[null,null,null,null,null,0]
[null,null,null,null,null,0]
[null,null,null,null,null,0]
[null,null,null,null,null,0]
[null,null,null,null,null,0]
[null,null,null,null,null,0]
[null,null,null,null,null,0]
[null,null,null,null,null,0]
[null,null,null,null,null,0]
[null,null,null,null,null,0]
[null,null,null,null,null,0]
[null,null,null,null,null,0]
[null,null,null,null,null,0]
[null,null,null,null,null,0]
[null,null,null,null,null,0]
[null,null,null,null,null,0]
[null,null,null,null,null,0]
[null,null,null,null,null,0]
[null,null,null,null,null,0]
[null,null,null,null,null,0]
[null,null,null,null,null,0]
[null,null,null,null,null,0]
[null,null,null,null,null,0]
[null,null,null,null,null,0]
[null,null,null,null,null,0]
[null,null,null,null,null,0]
[null,null,null,null,null,0]
[null,null,null,null,null,0]
[null,null,null,null,null,0]
[null,null,null,null,null,0]
[null,null,null,null,null,0]
[null,null,null,null,null,0]
[null,null,null,null,null,0]
[null,null,null,null,null,0]
[null,null,null,null,null,0]
[null,null,null,null,null,0]
[null,null,null,null,null,0]
[null,null,null,null,null,0]
[null,null,null,null,null,0]
[null,null,null,null,null,0]
[null,null,null,null,null,0]
[null,null,null,null,null,0]
[null,null,null,null,null,0]
[null,null,null,null,null,0]
[null,null,null,null,null,{"$f":"D1171*E1171","v":0}]
[null,null,null,null,null,0]
[null,null,null,null,null,0]
[null,null,null,null,null,0]
[null,null,null,null,null,0]
[null,null,null,null,null,0]
[null,null,null,null,null,0]
[null,null,null,null,null,0]
[null,null,null,null,null,0]
[null,null,null,null,null,0]
[null,null,null,null,null,0]
[null,null,null,null,null,0]
[null,null,null,null,null,0]
[null,null,null,null,null,0]
[null,null,null,null,null,0]
[null,null,null,null,null,0]
[null,null,null,null,null,0]
[null,null,null,null,null,0]
[null,null,null,null,null,0]
[null,null,null,null,null,0]
[null,null,null,null,null,0]
[null,null,null,null,null,0]
[null,null,null,null,null,0]
[null,null,null,null,null,0]
[null,null,null,null,null,0]
[null,null,null,null,null,0]
[null,null,null,null,null,0]
[null,null,null,null,null,0]
[null,null,null,null,null,0]
[null,null,null,null,null,0]
[null,null,null,null,null,0]
[null,null,null,null,null,0]
[null,null,null,null,null,0]
[null,null,null,null,null,0]
[null,null,null,null,null,0]
[null,null,null,null,null,0]
[null,null,null,null,null,0]
[null,null,null,null,null,0]
[null,null,null,null,null,0]
[null,null,null,null,null,0]
[null,null,null,null,null,0]
[null,null,null,null,null,0]
[null,null,null,null,null,0]
[null,null,null,null,null,0]
[null,null,null,null,null,0]
[null,null,null,null,null,0]
[null,null,null,null,null,0]
[null,null,null,null,null,0]
[null,null,null,null,null,0]
[null,null,null,null,null,0]
[null,null,null,null,null,0]
[null,null,null,null,null,0]
[null,null,null,null,null,0]
[null,null,null,null,null,0]
[null,null,null,null,null,0]
[null,null,null,null,null,0]
[null,null,null,null,null,0]
[null,null,null,null,null,0]
[null,null,null,null,null,0]
[null,null,null,null,null,0]
[null,null,null,null,null,0]
[null,null,null,null,null,0]
[null,null,null,null,null,0]
[null,null,null,null,null,0]
[null,null,null,null,null,{"$f":"D1235*E1235","v":0}]
[null,null,null,null,null,0]
[null,null,null,null,null,0]
[null,null,null,null,null,0]
[null,null,null,null,null,0]
[null,null,null,null,null,0]
[null,null,null,null,null,0]
[null,null,null,null,null,0]
[null,null,null,null,null,0]
[null,null,null,null,null,0]
[null,null,null,null,null,0]
[null,null,null,null,null,0]
[null,null,null,null,null,0]
[null,null,null,null,null,0]
[null,null,null,null,null,0]
[null,null,null,null,null,0]
[null,null,null,null,null,0]
[null,null,null,null,null,0]
[null,null,null,null,null,0]
[null,null,null,null,null,0]
[null,null,null,null,null,0]
[null,null,null,null,null,0]
[null,null,null,null,null,0]
[null,null,null,null,null,0]
[null,null,null,null,null,0]
[null,null,null,null,null,0]
[null,null,null,null,null,0]
[null,null,null,null,null,0]
[null,null,null,null,null,0]
[null,null,null,null,null,0]
[null,null,null,null,null,0]
[null,null,null,null,null,0]
[null,null,null,null,null,0]
[null,null,null,null,null,0]
[null,null,null,null,null,0]
[null,null,null,null,null,0]
[null,null,null,null,null,0]
[null,null,null,null,null,0]
[null,null,null,null,null,0]
[null,null,null,null,null,0]
[null,null,null,null,null,0]
[null,null,null,null,null,0]
[null,null,null,null,null,0]
[null,null,null,null,null,0]
[null,null,null,null,null,0]
[null,null,null,null,null,0]
[null,null,null,null,null,0]
[null,null,null,null,null,0]
[null,null,null,null,null,0]
[null,null,null,null,null,0]
[null,null,null,null,null,0]
[null,null,null,null,null,0]
[null,null,null,null,null,0]
[null,null,null,null,null,0]
[null,null,null,null,null,0]
[null,null,null,null,null,0]
[null,null,null,null,null,0]
[null,null,null,null,null,0]
[null,null,null,null,null,0]
[null,null,null,null,null,0]
[null,null,null,null,null,0]
[null,null,null,null,null,0]
[null,null,null,null,null,0]
[null,null,null,null,null,0]
[null,null,null,null,null,{"$f":"D1299*E1299","v":0}]
[null,null,null,null,null,0]
[null,null,null,null,null,0]
[null,null,null,null,null,0]
[null,null,null,null,null,0]
[null,null,null,null,null,0]
[null,null,null,null,null,0]
[null,null,null,null,null,0]
[null,null,null,null,null,0]
[null,null,null,null,null,0]
[null,null,null,null,null,0]
[null,null,null,null,null,0]
[null,null,null,null,null,0]
[null,null,null,null,null,0]
[null,null,null,null,null,0]
[null,null,null,null,null,0]
[null,null,null,null,null,0]
[null,null,null,null,null,0]
[null,null,null,null,null,0]
[null,null,null,null,null,0]
[null,null,null,null,null,0]
[null,null,null,null,null,0]
[null,null,null,null,null,0]
[null,null,null,null,null,0]
[null,null,null,null,null,0]
[null,null,null,null,null,0]
[null,null,null,null,null,0]
[null,null,null,null,null,0]
[null,null,null,null,null,0]
[null,null,null,null,null,0]
[null,null,null,null,null,0]
[null,null,null,null,null,0]
[null,null,null,null,null,0]
[null,null,null,null,null,0]
[null,null,null,null,null,0]
[null,null,null,null,null,0]
[null,null,null,null,null,0]
[null,null,null,null,null,0]
[null,null,null,null,null,0]
[null,null,null,null,null,0]
[null,null,null,null,null,0]
[null,null,null,null,null,0]
[null,null,null,null,null,0]
[null,null,null,null,null,0]
[null,null,null,null,null,0]
[null,null,null,null,null,0]
[null,null,null,null,null,0]
[null,null,null,null,null,0]
[null,null,null,null,null,0]
[null,null,null,null,null,0]
[null,null,null,null,null,0]
[null,null,null,null,null,0]
[null,null,null,null,null,0]
[null,null,null,null,null,0]
[null,null,null,null,null,0]
[null,null,null,null,null,0]
[null,null,null,null,null,0]
[null,null,null,null,null,0]
[null,null,null,null,null,0]
[null,null,null,null,null,0]
[null,null,null,null,null,0]
[null,null,null,null,null,0]
[null,null,null,null,null,0]
[null,null,null,null,null,0]
[null,null,null,null,null,{"$f":"D1363*E1363","v":0}]
[null,null,null,null,null,0]
[null,null,null,null,null,0]
[null,null,null,null,null,0]
[null,null,null,null,null,0]
[null,null,null,null,null,0]
[null,null,null,null,null,0]
[null,null,null,null,null,0]
[null,null,null,null,null,0]
[null,null,null,null,null,0]
[null,null,null,null,null,0]
[null,null,null,null,null,0]
[null,null,null,null,null,0]
[null,null,null,null,null,0]
[null,null,null,null,null,0]
[null,null,null,null,null,0]
[null,null,null,null,null,0]
[null,null,null,null,null,0]
[null,null,null,null,null,0]
[null,null,null,null,null,0]
[null,null,null,null,null,0]
[null,null,null,null,null,0]
[null,null,null,null,null,0]
[null,null,null,null,null,0]
[null,null,null,null,null,0]
[null,null,null,null,null,0]
[null,null,null,null,null,0]
[null,null,null,null,null,0]
[null,null,null,null,null,0]
[null,null,null,null,null,0]
[null,null,null,null,null,0]
[null,null,null,null,null,0]
[null,null,null,null,null,0]
[null,null,null,null,null,0]
[null,null,null,null,null,0]
[null,null,null,null,null,0]
[null,null,null,null,null,0]
[null,null,null,null,null,0]
[null,null,null,null,null,0]
[null,null,null,null,null,0]
[null,null,null,null,null,0]
[null,null,null,null,null,0]
[null,null,null,null,null,0]
[null,null,null,null,null,0]
[null,null,null,null,null,0]
[null,null,null,null,null,0]
[null,null,null,null,null,0]
[null,null,null,null,null,0]
[null,null,null,null,null,0]
[null,null,null,null,null,0]
[null,null,null,null,null,0]
[null,null,null,null,null,0]
[null,null,null,null,null,0]
[null,null,null,null,null,0]
[null,null,null,null,null,0]
[null,null,null,null,null,0]
[null,null,null,null,null,0]
[null,null,null,null,null,0]
[null,null,null,null,null,0]
[null,null,null,null,null,0]
[null,null,null,null,null,0]
[null,null,null,null,null,0]
[null,null,null,null,null,0]
[null,null,null,null,null,0]
[null,null,null,null,null,{"$f":"D1427*E1427","v":0}]
[null,null,null,null,null,0]
[null,null,null,null,null,0]
[null,null,null,null,null,0]
[null,null,null,null,null,0]
[null,null,null,null,null,0]
[null,null,null,null,null,0]
[null,null,null,null,null,0]
[null,null,null,null,null,0]
[null,null,null,null,null,0]
[null,null,null,null,null,0]
[null,null,null,null,null,0]
[null,null,null,null,null,0]
[null,null,null,null,null,0]
[null,null,null,null,null,0]
[null,null,null,null,null,0]
[null,null,null,null,null,0]
[null,null,null,null,null,0]
[null,null,null,null,null,0]
[null,null,null,null,null,0]
[null,null,null,null,null,0]
[null,null,null,null,null,0]
[null,null,null,null,null,0]
[null,null,null,null,null,0]
[null,null,null,null,null,0]
[null,null,null,null,null,0]
[null,null,null,null,null,0]
[null,null,null,null,null,0]
[null,null,null,null,null,0]
[null,null,null,null,null,0]
[null,null,null,null,null,0]
[null,null,null,null,null,0]
[null,null,null,null,null,0]
[null,null,null,null,null,0]
[null,null,null,null,null,0]
[null,null,null,null,null,0]
[null,null,null,null,null,0]
[null,null,null,null,null,0]
[null,null,null,null,null,0]
[null,null,null,null,null,0]
[null,null,null,null,null,0]
[null,null,null,null,null,0]
[null,null,null,null,null,0]
[null,null,null,null,null,0]
[null,null,null,null,null,0]
[null,null,null,null,null,0]
[null,null,null,null,null,0]
[null,null,null,null,null,0]
[null,null,null,null,null,0]
[null,null,null,null,null,0]
[null,null,null,null,null,0]
[null,null,null,null,null,0]
[null,null,null,null,null,0]
[null,null,null,null,null,0]
[null,null,null,null,null,0]
[null,null,null,null,null,0]
[null,null,null,null,null,0]
[null,null,null,null,null,0]
[null,null,null,null,null,0]
[null,null,null,null,null,0]
[null,null,null,null,null,0]
[null,null,null,null,null,0]
[null,null,null,null,null,0]
[null,null,null,null,null,0]
[null,null,null,null,null,{"$f":"D1491*E1491","v":0}]
[null,null,null,null,null,0]
[null,null,null,null,null,0]
[null,null,null,null,null,0]
[null,null,null,null,null,0]
[null,null,null,null,null,0]
[null,null,null,null,null,0]
[null,null,null,null,null,0]
[null,null,null,null,null,0]
[null,null,null,null,null,0]
[null,null,null,null,null,0]
[null,null,null,null,null,0]
[null,null,null,null,null,0]
[null,null,null,null,null,0]
[null,null,null,null,null,0]
[null,null,null,null,null,0]
[null,null,null,null,null,0]
[null,null,null,null,null,0]
[null,null,null,null,null,0]
[null,null,null,null,null,0]
[null,null,null,null,null,0]
[null,null,null,null,null,0]
[null,null,null,null,null,0]
[null,null,null,null,null,0]
[null,null,null,null,null,0]
[null,null,null,null,null,0]
[null,null,null,null,null,0]
[null,null,null,null,null,0]
[null,null,null,null,null,0]
[null,null,null,null,null,0]
[null,null,null,null,null,0]
[null,null,null,null,null,0]
[null,null,null,null,null,0]
[null,null,null,null,null,0]
[null,null,null,null,null,0]
[null,null,null,null,null,0]
[null,null,null,null,null,0]
[null,null,null,null,null,0]
[null,null,null,null,null,0]
[null,null,null,null,null,0]
[null,null,null,null,null,0]
[null,null,null,null,null,0]
[null,null,null,null,null,0]
[null,null,null,null,null,0]
[null,null,null,null,null,0]
[null,null,null,null,null,0]
[null,null,null,null,null,0]
[null,null,null,null,null,0]
[null,null,null,null,null,0]
[null,null,null,null,null,0]
[null,null,null,null,null,0]
[null,null,null,null,null,0]
[null,null,null,null,null,0]
[null,null,null,null,null,0]
[null,null,null,null,null,0]
[null,null,null,null,null,0]
[null,null,null,null,null,0]
[null,null,null,null,null,0]
[null,null,null,null,null,0]
[null,null,null,null,null,0]
[null,null,null,null,null,0]
[null,null,null,null,null,0]
[null,null,null,null,null,0]
[null,null,null,null,null,0]
[null,null,null,null,null,{"$f":"D1555*E1555","v":0}]
[null,null,null,null,null,0]
[null,null,null,null,null,0]
[null,null,null,null,null,0]
[null,null,null,null,null,0]
[null,null,null,null,null,0]
[null,null,null,null,null,0]
[null,null,null,null,null,0]
[null,null,null,null,null,0]
[null,null,null,null,null,0]
[null,null,null,null,null,0]
[null,null,null,null,null,0]
[null,null,null,null,null,0]
[null,null,null,null,null,0]
[null,null,null,null,null,0]
[null,null,null,null,null,0]
[null,null,null,null,null,0]
[null,null,null,null,null,0]
[null,null,null,null,null,0]
[null,null,null,null,null,0]
[null,null,null,null,null,0]
[null,null,null,null,null,0]
[null,null,null,null,null,0]
[null,null,null,null,null,0]
[null,null,null,null,null,0]
[null,null,null,null,null,0]
[null,null,null,null,null,0]
[null,null,null,null,null,0]
[null,null,null,null,null,0]
[null,null,null,null,null,0]
[null,null,null,null,null,0]
[null,null,null,null,null,0]
[null,null,null,null,null,0]
[null,null,null,null,null,0]
[null,null,null,null,null,0]
[null,null,null,null,null,0]
[null,null,null,null,null,0]
[null,null,null,null,null,0]
[null,null,null,null,null,0]
[null,null,null,null,null,0]
[null,null,null,null,null,0]
[null,null,null,null,null,0]
[null,null,null,null,null,0]
[null,null,null,null,null,0]
[null,null,null,null,null,0]
[null,null,null,null,null,0]
[null,null,null,null,null,0]
[null,null,null,null,null,0]
[null,null,null,null,null,0]
[null,null,null,null,null,0]
[null,null,null,null,null,0]
[null,null,null,null,null,0]
[null,null,null,null,null,0]
[null,null,null,null,null,0]
[null,null,null,null,null,0]
[null,null,null,null,null,0]
[null,null,null,null,null,0]
[null,null,null,null,null,0]
[null,null,null,null,null,0]
[null,null,null,null,null,0]
[null,null,null,null,null,0]
[null,null,null,null,null,0]
[null,null,null,null,null,0]
[null,null,null,null,null,0]
[null,null,null,null,null,{"$f":"D1619*E1619","v":0}]
[null,null,null,null,null,0]
[null,null,null,null,null,0]
[null,null,null,null,null,0]
[null,null,null,null,null,0]
[null,null,null,null,null,0]
[null,null,null,null,null,0]
[null,null,null,null,null,0]
[null,null,null,null,null,0]
[null,null,null,null,null,0]
[null,null,null,null,null,0]
[null,null,null,null,null,0]
[null,null,null,null,null,0]
[null,null,null,null,null,0]
[null,null,null,null,null,0]
[null,null,null,null,null,0]
[null,null,null,null,null,0]
[null,null,null,null,null,0]
[null,null,null,null,null,0]
[null,null,null,null,null,0]
[null,null,null,null,null,0]
[null,null,null,null,null,0]
[null,null,null,null,null,0]
[null,null,null,null,null,0]
[null,null,null,null,null,0]
[null,null,null,null,null,0]
[null,null,null,null,null,0]
[null,null,null,null,null,0]
[null,null,null,null,null,0]
[null,null,null,null,null,0]
[null,null,null,null,null,0]
[null,null,null,null,null,0]
[null,null,null,null,null,0]
[null,null,null,null,null,0]
[null,null,null,null,null,0]
[null,null,null,null,null,0]
[null,null,null,null,null,0]
[null,null,null,null,null,0]
[null,null,null,null,null,0]
[null,null,null,null,null,0]
[null,null,null,null,null,0]
[null,null,null,null,null,0]
[null,null,null,null,null,0]
[null,null,null,null,null,0]
[null,null,null,null,null,0]
[null,null,null,null,null,0]
[null,null,null,null,null,0]
[null,null,null,null,null,0]
[null,null,null,null,null,0]
[null,null,null,null,null,0]
[null,null,null,null,null,0]
[null,null,null,null,null,0]
[null,null,null,null,null,0]
[null,null,null,null,null,0]
[null,null,null,null,null,0]
[null,null,null,null,null,0]
[null,null,null,null,null,0]
[null,null,null,null,null,0]
[null,null,null,null,null,0]
[null,null,null,null,null,0]
[null,null,null,null,null,0]
[null,null,null,null,null,0]
[null,null,null,null,null,0]
[null,null,null,null,null,0]
[null,null,null,null,null,{"$f":"D1683*E1683","v":0}]
[null,null,null,null,null,0]
[null,null,null,null,null,0]
[null,null,null,null,null,0]
[null,null,null,null,null,0]
[null,null,null,null,null,0]
[null,null,null,null,null,0]
[null,null,null,null,null,0]
[null,null,null,null,null,0]
[null,null,null,null,null,0]
[null,null,null,null,null,0]
[null,null,null,null,null,0]
[null,null,null,null,null,0]
[null,null,null,null,null,0]
[null,null,null,null,null,0]
[null,null,null,null,null,0]
[null,null,null,null,null,0]
[null,null,null,null,null,0]
[null,null,null,null,null,0]
[null,null,null,null,null,0]
[null,null,null,null,null,0]
[null,null,null,null,null,0]
[null,null,null,null,null,0]
[null,null,null,null,null,0]
[null,null,null,null,null,0]
[null,null,null,null,null,0]
[null,null,null,null,null,0]
[null,null,null,null,null,0]
[null,null,null,null,null,0]
[null,null,null,null,null,0]
[null,null,null,null,null,0]
[null,null,null,null,null,0]
[null,null,null,null,null,0]
[null,null,null,null,null,0]
[null,null,null,null,null,0]
[null,null,null,null,null,0]
[null,null,null,null,null,0]
[null,null,null,null,null,0]
[null,null,null,null,null,0]
[null,null,null,null,null,0]
[null,null,null,null,null,0]
[null,null,null,null,null,0]
[null,null,null,null,null,0]
[null,null,null,null,null,0]
[null,null,null,null,null,0]
[null,null,null,null,null,0]
[null,null,null,null,null,0]
[null,null,null,null,null,0]
[null,null,null,null,null,0]
[null,null,null,null,null,0]
[null,null,null,null,null,0]
[null,null,null,null,null,0]
[null,null,null,null,null,0]
[null,null,null,null,null,0]
[null,null,null,null,null,0]
[null,null,null,null,null,0]
[null,null,null,null,null,0]
[null,null,null,null,null,0]
[null,null,null,null,null,0]
[null,null,null,null,null,0]
[null,null,null,null,null,0]
[null,null,null,null,null,0]
[null,null,null,null,null,0]
[null,null,null,null,null,0]
[null,null,null,null,null,{"$f":"D1747*E1747","v":0}]
[null,null,null,null,null,0]
[null,null,null,null,null,0]
[null,null,null,null,null,0]
[null,null,null,null,null,0]
[null,null,null,null,null,0]
[null,null,null,null,null,0]
[null,null,null,null,null,0]
[null,null,null,null,null,0]
[null,null,null,null,null,0]
[null,null,null,null,null,0]
[null,null,null,null,null,0]
[null,null,null,null,null,0]
[null,null,null,null,null,0]
[null,null,null,null,null,0]
[null,null,null,null,null,0]
[null,null,null,null,null,0]
[null,null,null,null,null,0]
[null,null,null,null,null,0]
[null,null,null,null,null,0]
[null,null,null,null,null,0]
[null,null,null,null,null,0]
[null,null,null,null,null,0]
[null,null,null,null,null,0]
[null,null,null,null,null,0]
[null,null,null,null,null,0]
[null,null,null,null,null,0]
[null,null,null,null,null,0]
[null,null,null,null,null,0]
[null,null,null,null,null,0]
[null,null,null,null,null,0]
[null,null,null,null,null,0]
[null,null,null,null,null,0]
[null,null,null,null,null,0]
[null,null,null,null,null,0]
[null,null,null,null,null,0]
[null,null,null,null,null,0]
[null,null,null,null,null,0]
[null,null,null,null,null,0]
[null,null,null,null,null,0]
[null,null,null,null,null,0]
[null,null,null,null,null,0]
[null,null,null,null,null,0]
[null,null,null,null,null,0]
[null,null,null,null,null,0]
[null,null,null,null,null,0]
[null,null,null,null,null,0]
[null,null,null,null,null,0]
[null,null,null,null,null,0]
[null,null,null,null,null,0]
[null,null,null,null,null,0]
[null,null,null,null,null,0]
[null,null,null,null,null,0]
[null,null,null,null,null,0]
[null,null,null,null,null,0]
[null,null,null,null,null,0]
[null,null,null,null,null,0]
[null,null,null,null,null,0]
[null,null,null,null,null,0]

{"sheet":"Opći uvjeti","index":1,"n_rows":258,"n_cols":3,"rows_kept":258,"cut":false,"hidden":false,"merged":[]}
[]
[]
[null,"Crtl+Q","m1"]
[null,"Crtl+W","m2"]
[null,"Crtl+E","m3"]
[]
[]
["UVODNA NAPOMENA"]
["Oznaka \"Jednakovrijedan\" proizvod znači da eventualno zamjenski materijal mora u potpunosti odgovarati tehničkim svojstvima predloženog materijala ili sklopa.  "]
["Ukoliko ponuđač nudi jednakovrijedan proizvod, obavezan je već u sklopu same ponude priložiti tehnički ispravan dokaz jednakovrijednosti (važeći certifikat, atest ili sl., što će u konačnici biti sastavni dio  ukupne dokumentacije za ishođenje uporabne dozvole)."]
["Tijekom građenja izvođač je za svaku izmjenu projekta dužan prethodno pribaviti suglasnost projektanta."]
["Glavni izvođač odnosno ponuditelj je dužan snositi sve troškove gradilišta:  \n- sve pogonske troškove gradilišta koji nastaju njegovim djelovanjem \n- trošak izvedbe privremenog priključka električne energije za potrebe građenja\n- utrošak el. energije tijekom izvođenja radova  do predaje investitoru\n- trošak izvedbe privremenog gradilišnog priključka vode za potrebe građenja, sa postavom kontrolnog vodobrojila\n- utrošak vode za cijelo vrijeme izvođenja radova na uređenju/građenju do predaje objekta investitoru"]
[]
["GRAĐEVINSKO - OBRTNIČKI RADOVI"]
["OPĆI UVJETI"]
["Ovi opći uvjeti su sastavni dio troškovnika i u svemu ih se treba pridržavati, osim ako u stavci troškovnika to nije drugačije navedeno."]
[]
["Sve radove izvesti od materijala propisane kvalitete prema nacrtima, opisu, detaljima, pismenim i usmenim dogovorima, ali sve u okviru ponuđene jedinične cijene. Sve štete učinjene prigodom rada na vlasitim ili tuđim radovima i materijalima imaju se ukloniti na račun počinitelja."]
[]
["U cijeni stavke treba uzeti u obzir: dobavu, transport, uskladištenje i ugradbu materijala, kako osnovnog tako i pomoćnog te sve osnovne i pomoćne radnje i transporte na gradilištu, razne pomoćne konstrukcije - skele, radne podove (izradu, montažu i demontažu), sve mjere zaštite."]
["U cijeni stavke treba ukalkulirati i sve troškove osiguranja uskladištenog materijala, sve do ugradbe ili primopredaje istog kao i ispitivanja materijala - ateste."]
["Specifikacije (tekstualni dio) i grafički prikazi predstavljaju cjelinu i što je makar u jednom od njih naznačeno, obaveza je za izvoditelja. Sve eventualne nejasnoće treba izvođač riješiti sa projektantom prije davanja ponude, jer se naknadni zahtjevi neće uvažiti. Prije izvođenja radova treba provjeriti kvalitetu materijala koji se ugrađuje, od strane projektanta ili nadzornog inženjera i izvesti radove u skladu s detaljima izvedbe i opisom iz troškovnika."]
["Također prije izvođenja je obavezna izmjera na licu mjesta. Eventualne promjene u detaljima ili materijalu treba izvođač dogovoriti sa projektantom ili nadležnim nadzornim inženjerom."]
["Ukoliko izvođač ipak izvede radove na neodgovarajući način i od neodgovarajućih materijala, dužan je na svoj trošak izvesti iste od materijala tražene kvalitete i na opisan način, uz prethodno otklanjanje nekvalitetnih radova. Ukoliko prije početka izvođenja radova izvođač ustanovi da je došlo do promjene uvjeta za izvođenje radova, dužan je o tome upozoriti nadzornog inženjera i dogovorno riješiti i zapisnički ustanoviti kvalitetu izvođenja radova."]
["Pri radu treba obavezno primjenjivati sve potrebne mjere zaštite na radu, naročito zaštite od požara. Ukoliko nadzorni inženjer uoči da se ovih pravila izvoditelj doslovce ne pridržava, može mu se zabraniti daljnji rad dok ga ne organizira u skladu s pravilima."]
["Prilikom izvođenja radova, izvoditelj treba zaštititi sve susjedne plohe, dijelove konstrukcije i prethodno izvedene radove na prikladan način, a u skladu sa pravilima zaštite na radu, tako da ne dođe do oštećenja gore navedenoga. Troškove zaštite treba izvoditelj uračunati u jediničnu cijenu."]
["Ukoliko ipak dođe do oštećenja prethodno izvedenih radova za koje je odgovoran izvoditelj ili njegov kooperant, dužan je iste o svom trošku dovesti u stanje prije oštećenja ili naručiti iste radove kod drugog izvoditelja na svoj teret. Popravak treba izvesti u primarno određenom roku ili dogovorno."]
["Sav ugrađeni materijal treba odgovarati uvjetima iz opisa troškovnika i nacrta te odgovarajućim Hrvatskim normama ili tehničkim uvjetima za izvođenje istih radova, a ukoliko se to posebno traži opisom i drugim propisima. Izvoditelj treba kvalitetu ugrađenih materijala i stručnosti radnika dokazati odgovarajućim atestima i uvjerenjima izdanim od strane za to ovlaštene organizacije."]
[]
["Po završetku izvedenih radova, ali i u toku radova ukoliko je nužno zbog usklađivanja s drugim izvoditeljima, izvoditelj radova je dužan počistiti radni prostor i susjedne prostore, plohe i prethodno izvedene radove koje je svojim radom zaprljao, ili iste radove dogovoriti sa drugim izvoditeljem a sve na svoj trošak uključivo s odvozom sveg otpadnog materijala ili opreme s gradilišta."]
["Izvoditelj je također dužan ukloniti sve zaštitne i pomoćne konstrukcije u roku koji je predviđen za izvođenje radova i na svoj trošak. "]
["Sve radove izvoditelj treba izvesti u skladu sa opisima iz troškovnika, nacrtima i detaljima izvedbe, te važećim standardima i tehničkim uvjetima za odgovarajuću vrstu radova, a obračunati u skladu sa važećim građevinskim normama. Ukoliko građevinske norme ne postoje za istu vrstu radova, treba se služiti tehničkim uvjetima za izvođenje odgovarajućih radova."]
["U slučaju nesuglasica između građevinskih normi i tehničkih uvjeta, važeći su uvjeti obračuna i rada iz građevinskih normi."]
["U slučaju da izvoditelj predlaže druga projektantska rješenja, dužan je izraditi dokumentaciju (tekstualnu i grafičku) i dati je na odobrenje projektantu i nadzornom inženjeru, a uz suglasnost investitora. Za sve specijalističke radove (montažna armiranobetonska konstrukcija, čelična konstrukcija, bravarija i alu bravarija) izvoditelj je dužan izraditi radioničke nacrte i predočiti ih projektantu, nadzornom inženjeru i investitoru radi ovjere prije početka radova. Istu dokumentaciju izradit će o svom trošku."]
["Po završetku radova kvalitetu izvedenih radova treba izvoditelj ustanoviti zapisnički sa nadzornim inženjerom. Ukoliko se ustanovi da su radovi izvedeni nekvalitetno, izvoditelj je dužan iste ponovo izvesti u traženoj kvaliteti ili iste naručiti kod drugog izvoditelja, a sve u najkraćem dogovorenom roku i na svoj trošak."]
["Osim navedenih općih uvjeta, za određene grupe radova vrijede posebne opće napomene kojih se zajedno sa ovim općim uvjetima treba pridržavati."]
["NAPOMENA"]
["Svi prodori kroz zidove, grede, podne i stropne ploče za prolaz instalacija elektičnih kablova, cijevi vodovoda i odvodnje i cijevi rashlada promjera manjih od 50 mm ne obračunavaju se posebno, osim ukoliko nije troškovničkom stavkom definirano  drugačije. Podori - bušenja promjera 0-50 mm uključeni su jedinične stavke predmetne instalacije za koju se izvode i neće se posebno obračunavati. "]
[]
["PRIPREMNI RADOVI"]
["Izvođač je dužan prije početka radova sprovesti sve pripremne radove da se izvođenje može nesmetano odvijati. U tu svrhu izvođač je dužan detaljno proučiti investiciono tehničku dokumentaciju, te izvršiti potrebne računske kontrole. Potrebno je proučiti sve tehnologije izvedbe pojedinih radova radi optimalne organizacije građenja, nabavke materijala, kalkulacije i sl."]
["Izvođač i njegovi kooperanti dužni su svaki dio investiciono tehničke dokumentacije pregledati, te dati primjedbe na eventualne tehničke  probleme koji bi mogli prouzročiti slabiji kvalitet, postojanost ugrađenih elemenata ili druge štete. U protivnom biti će dužan ovakve štete sanirati o svom trošku. Naročitu pažnju kod toga treba posvetiti usaglašavanju građevinskih i instalaterskih nacrta. Ako ustanovi neke razlike u mjerama, nedostatke ili pogreške u podlogama, dužan je pravovremeno obavijestiti nadzornog inženjera i odgovornog projektanta, te zatražiti rješenja."]
[]
["UREĐENJE GRADILIŠTA"]
["Uređenje gradilišta dužan je izvođač izvesti prema shemi organizacije gradilišta koju je obavezan dostaviti uz ponudu. U organizaciji gradilišta izvođač je dužan uz ostalo posebno predvidjeti:"]
[]
["- prostorije za svoje kancelarije,"]
["- gradilište osigurati ogradom ili drugim posebnim elementima za sigurnost ljudi i zaštitu prometa i objektata,"]
["- postaviti potreban broj urednih skladišta, pomoćnih radnih prostorija, nadstrešnica, odrediti i urediti prometne i parkirne površine za radne i teretne automobile, opremu, građevinske strojeve  i sl., te opremu i objekte za rastresiti i habasti građevinski materijal,"]
["- Izvođač je dužan gradilište sa svim prostorijama i cijelim inventarom redovito održavati i čistiti,"]
[]
["Sve materijale izvođač mora redovito i pravovremeno dobaviti da ne dođe do bilo kakvog zastoja gradnje,"]
["U kalkulacije izvođač mora prema ponuđenim radovima uračunati ili posebno ponuditi eventualne zaštite za zimski period građenja, kišu ili sl."]
["Izvođač je dužan svu površinsku vodu u granicama gradilišta na svim nižim nivoima redovito odstranjivati odnosno nasipavati."]
["Na gradilištu mora postojati permanentna čuvarska služba za cijelo vrijeme trajanja gradnje također uračunata u faktor."]
["Gradilište mora biti po noći dobro osvijetljeno."]
["Sve otpadne matreijele  (šuta, lomovi, mort, ambalaža i sl.) treba odmah odvesti. Troškove treba ukalkulirati u režiju i faktor. Ukoliko se isti neće izvršavati  investitor ima pravo čišćenja i odvoz otpada povjeriti drugome, a na teret izvođača radova."]
["Izvođač je dužan uz shemu organizacije gradilišta dostaviti i spisak sve mehanizacije i opreme koja će biti na raspolaganju gradilišta, te satnice za rad i upotrebu svakog stroja."]
["Izvođač je dužan bez posebne naplate osigurati investitoru i projektantu potrebnu pomoć kod obilaska gradilišta i nadzora, uzimanju uzoraka i sl., potrebnim pomagalima i ljudima."]
["Na gradilištu moraju biti poduzete sve HTZ mjere prema postojećim propisima."]
[]
["MATERIJAL"]
["Pod tim nazivom se podrazumjeva samo cijena materijala tj. dobavna cijena i to kako glavnog materijala, tako i pomoćnog, veznog i slično. U tu cijenu uključena je i cijena transportnih troškova bez obzira na prijevozno sredstvo sa svim prijenosima, utovarima i istovarima, te uskladištenje i čuvanje na gradilištu od uništenja (prebacivanje, zaštita i slično). Tu je uključeno i davanje potrebnih uzoraka kod izvjesnih vrsta materijala (atesti).  Uzorke dostaviti projektantu i korisniku na uvid i pismeni odabir najmanje 30 dana prije ugradbe."]
[]
["RAD"]
["U kalkulaciji rada treba uključiti sav rad, kako glavni, tako i pomoćni, te sav unutarnji transport. Ujedno treba uključiti sav rad oko zaštite gotovih konstrukcija i dijelova objekta od štetnog utjecaja vrućine, hladnoće i slično. Sva potrebna čišćenja, kod svih građevinskih i obrtničkih radova, u toku izvođenja, dnevno (nakon završetka rada) uključiti u jedinične cijene stavki, tj, neće se posebno plaćati."]
[]
["SKELE"]
["Sve lake, pokretne, pomoćne  skele,  bez obzira na visinu, ulaze u jediničnu cijenu dotičnog rada, osim fasadne skele za obradu fasade, koja se obračunava kao posebna stavka. Skela mora biti na vrijeme postavljena kako ne bi nastao zastoj u radu. Pod pojmom skela podrazumijeva se i prilaz istoj, te ograda. Kod zemljanih radova u jediničnu cijenu ulaze razupore, te mostovi za prebacivanje iskopa većih dubina. Ujedno su tu uključeni i prilazi, te mostovi za betoniranje konstrukcije i slično. "]
[]
["IZMJERE"]
["Ukoliko nije u pojedinoj stavci dat način obračuna radova, treba se izvođač u svemu  pridržavati propisa HRN-a za pojedinu vrstu rada, važećih prosječnih normi u građevinarstvu, uputa proizvođača materijala koji se upotrebljava ili ugrađuje, te uputa nadzorne službe naručitelja."]
[]
["ZIMSKI I LJETNI RAD"]
["Ukoliko je ugovoreni termin izvršenja objekta uključen i zimski odnosno ljetni period, to se neće posebno izvođaču priznavati na ime naknade za rad pri niskoj temperaturi, zaštita konstrukcija od hladnoće i vrućine, te atmosferskih nepogoda, sve mora biti uključeno u jedinični cijenu. \nZa vrijeme zimskih, odnosno ljetnih razdoblja izvođač ima štititi objekt od smrzavanja, odnosno od prebrzog sušenja uslijed visokih ljetnih temperatura.\nU slučaju eventualno nastalih šteta (smrzavanja dijelova) izvođač ih ima otkloniti bez bilo kakve naplate. Ukoliko je temperatura niža od temperature pri kojoj je dozvoljen dotični rad, izvođač snosi punu odgovornost za ispravnost i kvalitetu rada.\nTo isto vrijedi i za zaštitu radova tokom ljeta od prebrzog sušenja uslijed visoke temperature. "]
[]
["CIJENE"]
["U jediničnu cijenu rada izvođač treba obuhvatiti i slijedeće radove, koji se neće zasebno platiti kao naknadni rad, i to:"]
["-kompletnu režiju gradilišta, uključujući dizalice, mostove, sitnu mehanizaciju i slično,"]
["-najamne troškove za posuđenu mehanizaciju, koju izvođač sam ne posjeduje, a potrebna mu je pri izvođenju rada,"]
["- sve troškove utroška vode, električne energije i svih drugih energenata,"]
["-sva ispitivanja materijala i ishođenje atesta (certifikata), "]
["-organizaciju prostorija i uvjeta zaštite na radu, zaštite od požara, te komfora i higijene zaposlenih,"]
[" čuvanje radilišta i gradilišta,"]
["-uskladištenje materijala i elemenata za obrtničke i instalaterske radove do njihove ugradbe,"]
["-uređenje gradilišta po završetku rada, sa otklanjanjem svih otpadaka, šute, ostataka građevnog materijala, inventara, pomoćnih objekata i sl., sa planiranjem terena na relativnu točnost od  ± 3 cm;"]
["-  osiguranje radova kod osiguravajućeg društva."]
[]
["Nikakvi režijski sati niti posebne naplate po navedenim radovima neće se posebno priznati, jer sve ovo ima biti uključeno u jediničnu cijenu. Prema ovom uvodu, opisu stavaka i grupi radova treba sastaviti jediničnu cijenu za svaku stavku troškovnika."]
[]
["PONUDE"]
["Pod dobavom se podrazumijeva sav glavni (osnovni) materijal, sa svim transportima (fco gradilište, bez obzira na prijevozno sredstvo, svi utovari i istovari) i zavisnim troškovima."]
[]
["OSTALO"]
["U jedinične cijene stavki imaju biti uračunati svi radovi i potrebni materijali (eventualno ne specificirani posebno u samom troškovniku), a koji su (prema uzancama struke i pravilima dobrog zanata) potrebni za potpuno dovršenje građevine, tj. dovođenje u stanje \"potpuno spremno za uporabu\". Svi takovi radovi imaju biti uračunati u jedinične cijene, tj. neće se posebno plaćati."]
[]
["Obaveza je izvođača provjeriti količine potrebnih materijala (prema projektu, nacrtima, detaljima, izmjeri i stanju na gradilištu i sl.), te naručiti i dobaviti potreban materijal prema vlastitom izračunu, izmjeri, procjeni i stvarnom stanju na gradilištu (ne prema količinama iz ovog troškovnika)."]
[]
["NAKNADNI RADOVI"]
["Za naknadne radove čiji opisi se ne nalaze u troškovniku, a koji se imaju izvesti po nalogu nadzornog inženjera, a uz odobrenje od strane investitora, obračun se vrši po stvarnim troškovima rada i materijala."]
["Za naknadne radove čiji se opisi nalaze u ugovornom troškovniku primjenjivati će se ugovorne jedinične cijene."]
["Sva odstupanja stvarno izvedenih količina u odnosu na količine predviđene projektantskim troškovima (+ ili -) obračunati će se prema stvarno izvršenim radovima što će se sporazumno riješiti između predstavnika izvođača i nadzornog inženjera odnosno investitora."]
[]
["SAV UNUTARNJI I VANJSKI TRANSPORT MORA BITI UKLJUČEN U JEDINIČNE CIJENE SVIH GRUPA RADOVA! "]
[]
["Ovaj \"Opći opis uz troškovnik\" i svi “Opći uvjeti” (obračunsko-tehnički uvjeti i specifikacije) uz pojedine radove sastavni su dio troškovnika i moraju biti priloženi i ovjereni prilikom davanja ponude."]
[]
[]
[]
["Pripremni i skelarski radovi  "]
["Prije izrade ponude, izvoditelj je dužan pregledati građevinu i teren oko nje, a radi ocjene uvjeta za organizaciju gradilišta i organizaciju izvedbe radova."]
[]
["Skele se izvode od tipskih čeličnih vruće valjanih cijevi profila 48,25 mm sa debljinom stijenki od 4,25 mm ili atestirana «H» skela. Skela se postavlja na nosivu podlogu iz metalnih podložnih papuča, površine nalijeganja minimalno 250 cm2. Podloga na koju se postavlja skela mora biti čvrsta i stabilna. Minimalna širina skele iznosi 80 cm, a udaljenost skele od zida do radne platforme smije biti maksimalno 15 - 20 cm. Visina zaštitne ograde iznosi 100 cm, a elemente ograde postaviti na maksimalni razmak od 35 cm. U razini radne platforme, uz zaštitnu ogradu, potrebno je postaviti dasku minimalne visine 20 cm, a kako šuta ne bi slobodno padala sa skele. Radnu platformu izvesti iz mosnica od piljene crnogorične građe II klase. Širina mosnica treba biti minimalna 25 cm i debljine 4,8 cm. Fasadna skela mora biti opremljena penjalicama maksimalne dužine 4,00 m u jednom komadu, postavljenih naizmjenično."]
[]
["Postavljenu skelu treba od podnožja do vrha, kao na krajevima dijagonalno ukrutiti kosnicima pod kutem od 45 stupnjeva, Također ju je potrebno osigurati od prevrtanja sidrenjem u građevinu, a razmak sidrenja mora biti manji od 6,00 m u horizontalnom i vertikalnom smjeru. Izvedena skela ne smije imati slobodnu visinu stupova veću od 4,00 m. Postavljenu skelu potrebno je osigurati od udara groma uzemljenjem. Na fasadnu skelu potrebno je sa vanjske strane postaviti jutenu ili plastičnu zaštitu."]
["Izvoditelj je dužan izraditi statički račun sa nacrtom skele, a prije postavljanja iste, te ga dostaviti na odobrenje. Također je dužan ishoditi odobrenje za postavljanje skele i u duhu te suglasnosti riješiti zaštitu prolaznika."]
[]
["Jedinična cijena treba sadržavati:"]
["`-      kompletan rad oko postave i skidanja skele sa dopremom, prenosima"]
["        ( horizontalnim i vertikalnim), te otpremom,"]
["-          troškove izrade statičkog računa sa nacrtom skele,"]
["-          amortizaciju materijala potrebnih za izradu skele za vrijeme izvođenja svih radova "]
["-          sve društvene obveze na radnu snagu i materijal,"]
["-          održavanje skele za vrijeme trajanja izvedbe radova,"]
["-          naknadu za zauzimanje javno prometne površine,"]
["-          pripremno završne radove."]
["Amortizacija skele se obračunava za vrijeme kompletne obnove fasade, s time da skelu mogu koristiti svi izvoditelji koji izvode radove na građevini, i to bez posebne naplate."]
["Izvoditelj je dužan operativnim planom uskladiti sve aktivnosti tako, da se izbjegne međusobno ometanje izvedbe pojedinih izvoditelja."]
["Svi materijali za izradu skele moraju odgovarati važećim propisima i standardima:"]
["       HRN C.B3. 021. – za čelik,"]
["       HRN C.B5. 021. – za valjane čelične profile,"]
["       HRN G.D9. 220. – za čavle za pištolj,"]
["       HRN D.C1. 021. – 041 za rezanu građu,"]
["       HRN M.B4. 020. – 100 za čavle"]
[]
["Radovi demontaža, rušenja i obijanja"]
["Svim demontažama, obijanjima žbuke i probijanjima treba pristupiti pažljivo i to u pravilu sa ručnim alatima."]
[]
["Nakon provedenih pripremnih radova, rušenja na građevini vrši se prema unaprijed utvrđenom redoslijedu dogovorenom s nadzornim inženjerom investitora."]
[]
["Demontaže i rušenja izvode se u pravilu od krova prema dolje."]
[]
["Prije početka radova treba ispitati sve instalacije koje se nalaze u građevini, te ih treba po stručnoj osobi zaštititi u skladu s propisima ili umrtviti."]
[]
["Jediničnom cijenom izvoditelj treba obuhvatiti sve potrebne radnje za demontaže i rušenja, odnosno obijanja sa svim prenosima do skladišta ili privremene deponije otpadnog materijala. Također u jediničnu cijenu treba uključiti i završno čišćenje zauzetih javno prometnih površina, te dovođenja istih u prvobitno stanje. Sva davanja društvu na radnu snagu i materijal također trebaju biti uključeni u jediničnu cijenu. "]
[]
[]
["Tesarski radovi"]
[]
["Sav upotrijebljeni materijal i fini građevinski proizvodi moraju odgovarati postojećim tehničkim propisima i HR"]
["normama. Sve radove treba izvesti stručno i solidno, prema tehničkim propisima i pravilima dobrog zanata."]
["Jedinična cijena obuhvaća sav rad, materijal, transport do gradilišta i sav horizontalan i vertikalan transport na"]
["gradilištu, te sav sitni spojni i pomoćni materijal."]
["Norme za tesarske radove:"]
[" HRN S.D.B7.020, Tesano crnogorično drvo"]
[" HRN S.D.C1.040 i 041, Rezano crnogorično drvo"]
[]
["Prilikom izvedbe tesarskih radova treba se u svemu pridrţavati svih vaţećih propisa i standarda za drvene"]
["konstrukcije:"]
[" HRN D.C1.040, 041. i 042, Pravilnik o zaštiti na radu u građevinarstvu"]
[" HRN U.C9.400, Rezana građa, ispitivanje oplate i skele (izvođenje drvenih skela i oplata)"]
[" HRN D.8.100. do 114, Ispitivanje ploča vlaknatica i iverica"]
[" HRN D.10.060-1969, Slojevito drvo, terminologija i definicije"]
[" HRN D.A1.020-1957, Ispitivanje drveta, opći dio"]
[" HRN D.A1.043-1979, Ispitivanje drveta, odrţavanje sadrţaja vlage"]
[" HRN D.A1.048-1979, Ispitivanje drveta, određivanje zatezne čvrstoće u pravcu vlakana"]
[" HRN D.A1.052-1958, Ispitivanje drveta, zatezna čvrstoća okomito na drvena vlakna"]
[" HRN D.A1.058-1971, Zaštita drveta, ispitivanje otpornosti prema gljivama, usporedna otpornost različitih vrsta"]
["drveta"]
[" HRN D.A1.072.1972, Furnirske i stolarske ploče, odreĎivanje stupnja slijepljenosti"]
[" HRN D.B7.020-1955, Tesana graĎa četinara"]
[" HRN D.C5.022-1968, Ploče vlaknatice (lesonit ploče), tehnički uvjeti za izradu i isporuku"]
[]
["Oplata mora biti sposobna da preuzme potrebno opterećenje, mora biti stabilna, otporna, ukrućena i dovoljno "]
["poduprta da se ne bi izvila, povila ili popustila u bilo kojem smjeru. Lake fasadne skele izraĎivati od metala i "]
["drveta, a prema prijedlogu izvođača, tj. nije dat tip skele, već se to prepušta izvođaču."]
["Jediničnom cijenom obuhvaćen je sav rad s potrebnim premazima, sav materijal, pomoćna skela, svi pomoćni "]
["radovi, donošenje i drţanje alata i sitnog pribora, sva uskladištenja i svi transporti, dobava pogonskog "]
["materijala, osiguranje radova od vjetra, odstranjivanje svih otpada u toku radova i nakon dovršenja radova, "]
["popravak šteta učinjenih nepažnjom."]
["Sav upotrijebljeni materijal i fini građevinski proizvodi moraju odgovarati postojećim tehničkim propisima i HR"]
["normama. Izvođač je dužan na zahtjev investitora i nadzornog inţenjera predočiti uzorke i prospekte za "]
["pojedine materijale koji se planiraju upotrijebiti, kao i predočiti njihove ateste o kvaliteti, izdane od ovlaštene "]
["ustanove. Krovište mora biti pokriveno kvalitetnim materijalom, pravilnog oblika, traţenih dimenzija, koji u "]
["potpunosti zadovoljava važeće propise i standarde i ne smije propuštati vodu. Pokrivanje se vrši po propisima "]
["i pravilima zanata. Pokrivene plohe moraju biti ravne, bez uvala koje bi omogućavale skupljanje i zadržavanje"]
[" vode. Prije početka pokrivanja krova sva limarija krova mora biti gotova i postavljena."]
[]
[]
[]
["Krovopokrivački radovi"]
["Sav upotrijebljeni materijal i finalni građevinski proizvodi moraju odgovarati postojećim tehničkim propisima i HR normama."]
["Izvođač je dužan na zahtjev investitora i nadzornog inženjera predočiti uzorke i prospekte za pojedine materijale koji se planiraju upotrijebiti, kao i predočiti njihove ateste o kvaliteti, izdane od ovlaštene organizacije."]
["Krovište mora biti pokriveno kvalitetnim materijalom, pravilnog oblika, traženih dimenzija, koji u potpunosti zadovoljava važeće propise i standarde i ne smije propuštati vodu. Pokrivanje se vrši po propisima i pravilima zanata. Pokrivene plohe moraju biti ravne, bez uvala koje bi omogućavale skupljanje i zadržavanje vode."]
["Prije početka pokrivanja krova sva limarija krova mora biti gotova i postavljena."]
["Jedinična cijena obuhvaća sav rad, materijal, transport do gradilišta i sav horizontalan i vertikalan transport na gradilištu, te sav sitni spojni i pomoćni materijal."]
["Sve radove treba izvesti stručno i solidno, prema tehničkim propisima i pravilima dobrog zanata."]
["Norme za pokrivačke radove:"]
["-          HRN S.B.D1.009. – vučeni crijepovi od gline"]
["-          HRN S.B.D1.010. – prešani crijepovi od gline"]
["Norme za tesarske radove"]
["-          HRN S.D.B7.020. – tesano crnogorično drvo"]
["-          HRN S.D.C1.040. i 041. – rezano crnogorično drvo"]
[]
["Prije početka radova izvođač je dužan pregledati podloge i upozoriti na eventualne nedostatke."]
[]
["Svi elementi za pokrivanje moraju se upotrebljavati na nagibima koje proizvođač dopušta, te ugrađivati prema uputstvima proizvođača, važećim propisima i pravilima dobrog zanata."]
[]
["Izvođač ovih radova će u okviru jedinične cijene izvesti, ukoliko je tako troškovnički opisano, i potrebnu podlogu završnog pokrova tj. letvanje, oplatu i dodatnu hidroizolaciju slobodno položenom ljepenkom ili folijom."]
[]
[]
["Limarski radovi"]
["Sav upotrebljeni materijal i finalni građevinski proizvodi moraju odgovarati postojećim tehničkim propisima i HR normama."]
["Prilikom izvedbe limarskih radova treba se u svemu pridržavati slijedećih propisa i normi:"]
["-          Pravilnik o zaštiti na radu u građevinarstvu"]
["-          Pravilnik o tehničkim mjerama i uvjetima za završne radove u građevinarsvtvu"]
["-          Tehnički uvjeti za izvođenje limarskih radova"]
["HR norme"]
["pocinčani lim    HRN C.E4.020."]
["bakreni lim    HRN C.D4.500., HRN C.D4.020."]
[]
["Limarski radovi obuhvaćaju sve vrste pokrivanja i opšivanja limom, kao i  izradu i montažu žljebova, vertikalnih odvodnih cijevi i ventilacionih cijevi."]
[]
["Pomoćni i vezivni materijali kalaj, zakovice, zavrtnji i drugo moraju odgovarati odredbama HR normi."]
["Sve radove treba izvesti stručno i solidno, prema tehničkim propisima i uzancama zanata. Izvoditelj je dužan na zahtjev investitora ili nadzornog inženjera predočiti uzorke i prospekte za pojedine materijale. Nestandardiziran materijal mora imati atest o kvaliteti izdan od organizacije ovlaštene za izdavanje atesta. Izvoditelj je također dužan da za svaku stavku izradi detaljan crtež i ovjeri ga kod projektanta i nadzornog inženjera."]
["Različite vrste metala, koje se uslijed elektrolitskih pojava međusobno razaraju, ne smiju se izravno dodirivati. Sve željezne dijelove koji dolaze u dodir sa pocinčanim limom treba preličiti asfaltnim lakom ili odgovarajućim sredstvom. Kod polaganja lima na masivne podloge, potrebno je podloge prije oblaganja obložiti slojem krovne ljepenke br 120 radi sprečavanja štetnih kemijskih utjecaja na lim."]
["Sva se učvršćenja i povezivanja limova moraju izvesti tako da konstrukcija bude osigurana od nevremena, atmosferilija i prodora vode u objekt, i da pojedini dijelovi mogu nesmetano raditi kod temperaturnih promjena bez štete od ispravnosti konstrukcije."]
["Za učvršćivanje (kuke, zakovice, jahači, čavli, vijci i sl) treba primjeniti:\n- za pocinčani lim - dobro pocinčana spojna sredstva,\n- za bakreni lim - bakrena spojna sredstva,"]
[]
["Ispod lima koji se postavlja na beton, drvo ili žbuku treba postaviti sloj bitumenske ljepenke, čija su dobava i postava uključene u jediničnu cijenu."]
[]
["Stojeći spojevi izvedeni po priklonici moraju biti dvostruki tj. sa dva prijevoja visine minimalno 25 mm. Spojevi paralelni sa strehom moraju biti dvostruko savijeni i položeni. "]
[]
["Kod bakrenih limova nije dozvoljeno lemljenje. "]
[]
["Trapezni lim za pokrivanje od pocinčanog lima minimalne debljine 0,7 mm. Preklop mora biti minimalno 50 mm."]
[]
["Veće krovne uvale moraju se pokrivati kao krovovi.\nKod dužina preko 4 m, moraju se izvesti 100 mm široki preklopi."]
[]
["Probijanja u metalnom pokrivaču (učvršćivanje dimnjaka, cijevi kupola itd.) moraju biti posebno pažljivo izvedena kod pocinčanog lima pomoću lemljenja, a kod bakrenog pomoću dvostruko položenog ruba vezanog vodonepropusno sa pokrovom."]
[]
["U jediničnim cijenama je uračunato:"]
["-          naknada za kompletni rad (izrada i montaža)"]
["-          materijal"]
["-          svi vanjski i unutarnji, horizontalni i vertikalni transporti"]
["-          premazivanja asfalt lakom, podlaganje krovne ljepenke"]
["-          sav sitni i spojni materijal i materijal za učvršćenje (kuke, plosna željeza, žica za učvršćenje, vijci, zakovice i sl.)"]
["Izmjere je potrebno izvršiti na gradilištu, nakon izvedbe, obračunato prema građevinskim normama."]
["Obračun se vrši po m1 ili m2, ovisno o vrsti elementa, prema važećim građevinskim normama za pojedine radove, što je i naznačeno u pojedinim stavkama troškovnika."]
["Eventualne nejasnoće oko načina izvedbe ili obračuna izvoditelj je dužan razjasniti sa nadzornim inženjerom prije samog pristupanja izvođenju."]
[]
[]
[]
[]
[]
[]
["Sastavila:"]
["Marica Prohaska ing.građ."]